Workbook

Sheet Tx - Incidence arro,dis
B2: Quelle est la bonne méthode de calcul pour vérifier que le taux nominal proportionnel contractuel est bien respecté ?
B4: Sélectionner, ci_dessous, la méthode d'arrondis souhaitée puis cliquer sur le bouton "Calculs" => => => => =>
B5: Arrondis monétaires 2 décimales au plus proche sur échéances seulement | I5: =IF(B5=B153,1,IF(B5=B154,2,IF(B5=B155,3,4))) -> 3
B7: Simulations avec un prêt à échéances constantes, un second en deux paliers d'échéances progressifs et un troisième en deux paliers d'échéances dégressifs. Périodicité régulière mensuelle. Quatre méthodes d'arrondis différentes | G7: =B5 -> Arrondis monétaires 2 décimales au plus proche sur échéances seulement
G8: Prêt à échéances constantes et périodicité régulière (= mensuelle) | L8: Prêt en deux paliers progressifs d'échéances - Périodicité régulière (= mensuelle) | R8: Prêt en deux paliers dégressifs d'échéances - Périodicité régulière (= mensuelle)
G9: Moyenne taux proportionnel simple | H9: Moyenne taux proportionnel pondérée par montant et durée | I9: TRI/TEG proportionnel | J9: Taux débiteur/TAEG actuariel | K9: Conversion Taux débiteur/TAEG actuariel en TRI/TEG proportionnel | L9: Moyenne taux proportionnel simple | N9: Moyenne taux proportionnel pondérée par montant et durée | O9: TRI/TEG proportionnel | P9: Taux débiteur/TAEG actuariel | Q9: Conversion Taux débiteur/TAEG actuariel en TRI/TEG proportionnel | R9: Moyenne taux proportionnel simple | S9: Moyenne taux proportionnel pondérée par montant et durée | T9: TRI/TEG proportionnel | U9: Taux débiteur/TAEG actuariel | V9: Conversion Taux débiteur/TAEG actuariel en TRI/TEG proportionnel
G10: Taux à comparer avec le taux nominal proportionnel contractuel de 1,00% | H10: Taux à comparer avec le taux nominal proportionnel contractuel de 1,00% | I10: Taux à comparer avec le taux nominal proportionnel contractuel de 1,00% | J10: Décret N° 2016-607 du 13 mai 2016 | K10: Taux à comparer avec le taux nominal proportionnel contractuel de 1,00% | L10: Taux à comparer avec le taux nominal proportionnel contractuel de 1,00% | N10: Taux à comparer avec le taux nominal proportionnel contractuel de 1,00% | O10: Taux à comparer avec le taux nominal proportionnel contractuel de 1,00% | P10: Décret N° 2016-607 du 13 mai 2016 | Q10: Taux à comparer avec le taux nominal proportionnel contractuel de 1,00% | R10: Taux à comparer avec le taux nominal proportionnel contractuel de 1,00% | S10: Taux à comparer avec le taux nominal proportionnel contractuel de 1,00% | T10: Taux à comparer avec le taux nominal proportionnel contractuel de 1,00% | U10: Décret N° 2016-607 du 13 mai 2016 | V10: Taux à comparer avec le taux nominal proportionnel contractuel de 1,00%
B11: Simulation témoin N° 1 - Sans aucun arrondi | F11: 1 | G11: 0.01 | H11: 0.01 | I11: 0.01 | J11: 0.01004596089 | K11: 0.01 | L11: 0.01 | N11: 0.01 | O11: 0.01 | P11: 0.01004596089 | Q11: 0.01 | R11: 0.01 | S11: 0.01 | T11: 0.01 | U11: 0.01004596089 | V11: 0.01
B12: Simulation N° 2 - Arrondi monétaire 2 décimales au plus proche sur les échéances, les intérêts, les amortissements et les soldes dus. | F12: 2 | G12: 0.01000015292 | H12: 0.00999997665 | I12: 0.009999976058 | J12: 0.01004593673 | K12: 0.009999976058 | L12: 0.01000018018 | N12: 0.01000002791 | O12: 0.01000002863 | P12: 0.01004598978 | Q12: 0.01000002863 | R12: 0.009999755378 | S12: 0.01000008573 | T12: 0.01000008414 | U12: 0.01004604581 | V12: 0.01000008414
B13: Simulation N° 3 - Arrondi monétaire 2 décimales au plus proche sur l'échéance seulement | F13: 3 | G13: 0.01 | H13: 0.01 | I13: 0.009999994323 | J13: 0.01004595516 | K13: 0.009999994323 | L13: 0.01 | N13: 0.01 | O13: 0.009999998731 | P13: 0.01004595961 | Q13: 0.009999998731 | R13: 0.01 | S13: 0.01 | T13: 0.009999988868 | U13: 0.01004594965 | V13: 0.009999988868
B14: Simulation N° 4 - Arrondi monétaire 2 décimales au plus proche sur l'échéance et à l'inférieur sur les intérêts | F14: 4 | G14: 0.009996370529 | H14: 0.009998825348 | I14: 0.009998843646 | J14: 0.01004479389 | K14: 0.009998843646 | L14: 0.009997481327 | N14: 0.009998999758 | O14: 0.009999012124 | P14: 0.01004496392 | Q14: 0.009999012124 | R14: 0.009993987365 | S14: 0.009998354805 | T14: 0.009998392962 | U14: 0.01004433906 | V14: 0.009998392962
B16: =B2 -> Quelle est la bonne méthode de calcul pour vérifier que le taux nominal proportionnel contractuel est bien respecté ?
B17: Prêt à échéances constantes | M17: Prêt en deux paliers d'échéances progressifs | X17: Prêt en deux paliers d'échéances dégressifs
B18: Durée | C18: Montant | D18: Taux contractuel | G18: Taux à comparer avec le taux nominal proportionnel contractuel de 1,00% | H18: Taux à comparer avec le taux nominal proportionnel contractuel de 1,00% | I18: Taux à comparer avec le taux nominal proportionnel contractuel de 1,00% | J18: Décret N° 2016-607 du 13 mai 2016 | K18: Taux à comparer avec le taux nominal proportionnel contractuel de 1,00% | M18: Durée | N18: Montant | O18: Taux contractuel | R18: Taux à comparer avec le taux nominal proportionnel contractuel de 1,00% | S18: Taux à comparer avec le taux nominal proportionnel contractuel de 1,00% | T18: Taux à comparer avec le taux nominal proportionnel contractuel de 1,00% | U18: Décret N° 2016-607 du 13 mai 2016 | V18: Taux à comparer avec le taux nominal proportionnel contractuel de 1,00% | X18: Durée maxi | Y18: Montant | Z18: Taux contractuel | AC18: Taux à comparer avec le taux nominal proportionnel contractuel de 1,00% | AD18: Taux à comparer avec le taux nominal proportionnel contractuel de 1,00% | AE18: Taux à comparer avec le taux nominal proportionnel contractuel de 1,00% | AF18: Décret N° 2016-607 du 13 mai 2016 | AG18: Taux à comparer avec le taux nominal proportionnel contractuel de 1,00%
B19: 120 | C19: 100000 | D19: 0.01 | M19: =B19 -> 120 | N19: =C19 -> 100000 | O19: =D19 -> 0.01 | X19: =$M$19 -> 120 | Y19: =N19 -> 100000 | Z19: =O19 -> 0.01
B20: Rang | C20: Échéance | D20: Intérêts | E20: Amortissement | F20: Capital dû | G20: Moyenne taux proportionnel simple | H20: Moyenne taux proportionnel pondérée par montant et durée | I20: TRI/TEG proportionnel | J20: Taux débiteur/TAEG actuariel | K20: Conversion Taux débiteur/TAEG actuariel en TRI/TEG proportionnel | M20: Rang | N20: Échéance | O20: Intérêts | P20: Amortissement | Q20: Capital dû | R20: Moyenne taux proportionnel simple | S20: Moyenne taux proportionnel pondérée par montant et durée | T20: TRI/TEG proportionnel | U20: Taux débiteur/TAEG actuariel | V20: Conversion Taux débiteur/TAEG actuariel en TRI/TEG proportionnel | X20: Rang | Y20: Échéance | Z20: Intérêts | AA20: Amortissement | AB20: Capital dû | AC20: Moyenne taux proportionnel simple | AD20: Moyenne taux proportionnel pondérée par montant et durée | AE20: TRI/TEG proportionnel | AF20: Taux débiteur/TAEG actuariel | AG20: Conversion Taux débiteur/TAEG actuariel en TRI/TEG proportionnel
G21: =(SUM(G26:G145))/B19 -> 0.01 | H21: =(SUM(H26:H145))/F146 -> 0.01 | I21: =I146*12 -> 0.009999994323 | J21: 0.01004595516 | K21: =(((1+J21)^(1/12))-1)*12 -> 0.009999994323 | R21: =(SUM(R26:R145))/M19 -> 0.01 | S21: =(SUM(S26:S145))/Q146 -> 0.01 | T21: =T146*12 -> 0.009999998731 | U21: 0.01004595961 | V21: =(((1+U21)^(1/12))-1)*12 -> 0.009999998731 | Y21: =-PMT($Z$19/12,60,$Q$85,0,0) -> 1271.354242 | AC21: =(SUM(AC26:AC145))/X19 -> 0.01 | AD21: =(SUM(AD26:AD145))/AB146 -> 0.01 | AE21: =AE146*12 -> 0.009999988868 | AF21: 0.01004594965 | AG21: =(((1+AF21)^(1/12))-1)*12 -> 0.009999988868
G22: =G149 -> 120 | H22: =H149 -> Inférieurs au taux contractuel | R22: =R149 -> 120 | S22: =S149 -> Inférieurs au taux contractuel | AC22: =AC149 -> 120 | AD22: =AD149 -> Inférieurs au taux contractuel
G23: =G150 -> 0 | H23: Supérieurs au taux contractuel | R23: =R150 -> 0 | S23: Supérieurs au taux contractuel | AC23: =AC150 -> 0 | AD23: Supérieurs au taux contractuel
G24: =G151 -> 120 | H24: Total | R24: =R151 -> 120 | S24: Total | AC24: =AC151 -> 120 | AD24: Total
B25: 0 | F25: =C19 -> 100000 | G25: Contrôle taux | I25: =F25 -> 100000 | M25: 0 | Q25: =N19 -> 100000 | R25: Contrôle taux | T25: =Q25 -> 100000 | X25: 0 | AB25: =Y19 -> 100000 | AC25: Contrôle taux | AE25: =AB25 -> 100000
B26: 1 | C26: =IF($I$5=1,-PMT($D$19/12,$B$19,$C$19,0,0),ROUND(-PMT($D$19/12,$B$19,$C$19,0,0),2)) -> 876.04 | D26: =IF(OR($I$5=1,$I$5=3),F25*$D$19/12,IF($I$5=2,ROUND(F25*$D$19/12,2),ROUNDDOWN(F25*$D$19/12,2))) -> 83.33333333 | E26: =IF($I$5<>2,C26-D26,ROUND(C26-D26,2)) -> 792.7066667 | F26: =IF($I$5<>2,F25-E26,ROUND(F25-E26,2)) -> 99207.29333 | G26: =D26*12/F25 -> 0.01 | H26: =G26*F25 -> 1000 | I26: =-C26 -> -876.04 | J26: =C26*(1+$J$21)^(-B26/12) -> 875.3105749 | K26: =J26+K27 -> 100000 | M26: 1 | N26: =IF($I$5=1,500,ROUND(500,2)) -> 500 | O26: =IF(OR($I$5=1,$I$5=3),Q25*$O$19/12,IF($I$5=2,ROUND(Q25*$O$19/12,2),ROUNDDOWN(Q25*$O$19/12,2))) -> 83.33333333 | P26: =IF($I$5<>2,N26-O26,ROUND(N26-O26,2)) -> 416.6666667 | Q26: =IF($I$5<>2,Q25-P26,ROUND(Q25-P26,2)) -> 99583.33333 | R26: =O26*12/Q25 -> 0.01 | S26: =R26*Q25 -> 1000 | T26: =-N26 -> -500 | U26: =N26*(1+$U$21)^(-M26/12) -> 499.5836803 | V26: =V27+U26 -> 100000 | X26: 1 | Y26: =IF($I$5=1,$Y$21,ROUND($Y$21,2)) -> 1271.35 | Z26: =IF(OR($I$5=1,$I$5=3),AB25*$O$19/12,IF($I$5=2,ROUND(AB25*$O$19/12,2),ROUNDDOWN(AB25*$O$19/12,2))) -> 83.33333333 | AA26: =IF($I$5<>2,Y26-Z26,ROUND(Y26-Z26,2)) -> 1188.016667 | AB26: =IF($I$5<>2,AB25-AA26,ROUND(AB25-AA26,2)) -> 98811.98333 | AC26: =Z26*12/AB25 -> 0.01 | AD26: =AC26*AB25 -> 1000 | AE26: =-Y26 -> -1271.35 | AF26: =Y26*(1+$AF$21)^(-X26/12) -> 1270.291425 | AG26: =AG27+AF26 -> 100000
B27: 2 | C27: =IF($I$5=1,-PMT($D$19/12,$B$19,$C$19,0,0),ROUND(-PMT($D$19/12,$B$19,$C$19,0,0),2)) -> 876.04 | D27: =IF(OR($I$5=1,$I$5=3),F26*$D$19/12,IF($I$5=2,ROUND(F26*$D$19/12,2),ROUNDDOWN(F26*$D$19/12,2))) -> 82.67274444 | E27: =IF($I$5<>2,C27-D27,ROUND(C27-D27,2)) -> 793.3672556 | F27: =IF($I$5<>2,F26-E27,ROUND(F26-E27,2)) -> 98413.92608 | G27: =D27*12/F26 -> 0.01 | H27: =G27*F26 -> 992.0729333 | I27: =-C27 -> -876.04 | J27: =C27*(1+$J$21)^(-B27/12) -> 874.5817572 | K27: 99124.68943 | M27: 2 | N27: =IF($I$5=1,500,ROUND(500,2)) -> 500 | O27: =IF(OR($I$5=1,$I$5=3),Q26*$O$19/12,IF($I$5=2,ROUND(Q26*$O$19/12,2),ROUNDDOWN(Q26*$O$19/12,2))) -> 82.98611111 | P27: =IF($I$5<>2,N27-O27,ROUND(N27-O27,2)) -> 417.0138889 | Q27: =IF($I$5<>2,Q26-P27,ROUND(Q26-P27,2)) -> 99166.31944 | R27: =O27*12/Q26 -> 0.01 | S27: =R27*Q26 -> 995.8333333 | T27: =-N27 -> -500 | U27: =N27*(1+$U$21)^(-M27/12) -> 499.1677073 | V27: 99500.41632 | X27: 2 | Y27: =IF($I$5=1,$Y$21,ROUND($Y$21,2)) -> 1271.35 | Z27: =IF(OR($I$5=1,$I$5=3),AB26*$O$19/12,IF($I$5=2,ROUND(AB26*$O$19/12,2),ROUNDDOWN(AB26*$O$19/12,2))) -> 82.34331944 | AA27: =IF($I$5<>2,Y27-Z27,ROUND(Y27-Z27,2)) -> 1189.006681 | AB27: =IF($I$5<>2,AB26-AA27,ROUND(AB26-AA27,2)) -> 97622.97665 | AC27: =Z27*12/AB26 -> 0.01 | AD27: =AC27*AB26 -> 988.1198333 | AE27: =-Y27 -> -1271.35 | AF27: =Y27*(1+$AF$21)^(-X27/12) -> 1269.233731 | AG27: 98729.70858
B28: 3 | C28: 876.04 | D28: 82.01160506 | E28: 794.0283949 | F28: 97619.89768 | G28: 0.01 | H28: 984.1392608 | I28: -876.04 | J28: 873.8535463 | K28: 98250.10767 | M28: 3 | N28: 500 | O28: 82.63859954 | P28: 417.3614005 | Q28: 98748.95804 | R28: 0.01 | S28: 991.6631944 | T28: -500 | U28: 498.7520806 | V28: 99001.24861 | X28: 3 | Y28: 1271.35 | Z28: 81.35248054 | AA28: 1189.997519 | AB28: 96432.97913 | AC28: 0.01 | AD28: 976.2297665 | AE28: -1271.35 | AF28: 1268.176918 | AG28: 97460.47484
B29: 4 | C29: 876.04 | D29: 81.34991474 | E29: 794.6900853 | F29: 96825.2076 | G29: 0.01 | H29: 976.1989768 | I29: -876.04 | J29: 873.1259418 | K29: 97376.25412 | M29: 4 | N29: 500 | O29: 82.29079837 | P29: 417.7092016 | Q29: 98331.24884 | R29: 0.01 | S29: 987.4895804 | T29: -500 | U29: 498.3368 | V29: 98502.49653 | X29: 4 | Y29: 1271.35 | Z29: 80.36081594 | AA29: 1190.989184 | AB29: 95241.98995 | AC29: 0.01 | AD29: 964.3297913 | AE29: -1271.35 | AF29: 1267.120985 | AG29: 96192.29793
B30: 5 | C30: 876.04 | D30: 80.687673 | E30: 795.352327 | F30: 96029.85527 | G30: 0.01 | H30: 968.252076 | I30: -876.04 | J30: 872.3989431 | K30: 96503.12818 | M30: 5 | N30: 500 | O30: 81.94270737 | P30: 418.0572926 | Q30: 97913.19155 | R30: 0.01 | S30: 983.3124884 | T30: -500 | U30: 497.9218652 | V30: 98004.15973 | X30: 5 | Y30: 1271.35 | Z30: 79.36832496 | AA30: 1191.981675 | AB30: 94050.00827 | AC30: 0.01 | AD30: 952.4198995 | AE30: -1271.35 | AF30: 1266.065932 | AG30: 94925.17694
B31: 6 | C31: 876.04 | D31: 80.02487939 | E31: 796.0151206 | F31: 95233.84015 | G31: 0.01 | H31: 960.2985527 | I31: -876.04 | J31: 871.6725497 | K31: 95630.72924 | M31: 6 | N31: 500 | O31: 81.59432629 | P31: 418.4056737 | Q31: 97494.78588 | R31: 0.01 | S31: 979.1319155 | T31: -500 | U31: 497.5072758 | V31: 97506.23787 | X31: 6 | Y31: 1271.35 | Z31: 78.3750069 | AA31: 1192.974993 | AB31: 92857.03328 | AC31: 0.01 | AD31: 940.5000827 | AE31: -1271.35 | AF31: 1265.011756 | AG31: 93659.11101
B32: 7 | C32: 876.04 | D32: 79.36153346 | E32: 796.6784665 | F32: 94437.16168 | G32: 0.01 | H32: 952.3384015 | I32: -876.04 | J32: 870.9467612 | K32: 94759.05669 | M32: 7 | N32: 500 | O32: 81.2456549 | P32: 418.7543451 | Q32: 97076.03153 | R32: 0.01 | S32: 974.9478588 | T32: -500 | U32: 497.0930317 | V32: 97008.73059 | X32: 7 | Y32: 1271.35 | Z32: 77.38086107 | AA32: 1193.969139 | AB32: 91663.06414 | AC32: 0.01 | AD32: 928.5703328 | AE32: -1271.35 | AF32: 1263.958459 | AG32: 92394.09925
B33: 8 | C33: 876.04 | D33: 78.69763474 | E33: 797.3423653 | F33: 93639.81932 | G33: 0.01 | H33: 944.3716168 | I33: -876.04 | J33: 870.2215769 | K33: 93888.10993 | M33: 8 | N33: 500 | O33: 80.89669294 | P33: 419.1033071 | Q33: 96656.92822 | R33: 0.01 | S33: 970.7603153 | T33: -500 | U33: 496.6791324 | V33: 96511.63756 | X33: 8 | Y33: 1271.35 | Z33: 76.38588679 | AA33: 1194.964113 | AB33: 90468.10003 | AC33: 0.01 | AD33: 916.6306414 | AE33: -1271.35 | AF33: 1262.906038 | AG33: 91130.14079
B34: 9 | C34: 876.04 | D34: 78.03318277 | E34: 798.0068172 | F34: 92841.8125 | G34: 0.01 | H34: 936.3981932 | I34: -876.04 | J34: 869.4969965 | K34: 93017.88835 | M34: 9 | N34: 500 | O34: 80.54744019 | P34: 419.4525598 | Q34: 96237.47566 | R34: 0.01 | S34: 966.5692822 | T34: -500 | U34: 496.2655778 | V34: 96014.95843 | X34: 9 | Y34: 1271.35 | Z34: 75.39008336 | AA34: 1195.959917 | AB34: 89272.14011 | AC34: 0.01 | AD34: 904.6810003 | AE34: -1271.35 | AF34: 1261.854494 | AG34: 89867.23475
B35: 10 | C35: 876.04 | D35: 77.36817708 | E35: 798.6718229 | F35: 92043.14068 | G35: 0.01 | H35: 928.418125 | I35: -876.04 | J35: 868.7730194 | K35: 92148.39135 | M35: 10 | N35: 500 | O35: 80.19789639 | P35: 419.8021036 | Q35: 95817.67356 | R35: 0.01 | S35: 962.3747566 | T35: -500 | U35: 495.8523676 | V35: 95518.69285 | X35: 10 | Y35: 1271.35 | Z35: 74.39345009 | AA35: 1196.95655 | AB35: 88075.18356 | AC35: 0.01 | AD35: 892.7214011 | AE35: -1271.35 | AF35: 1260.803825 | AG35: 88605.38026
B36: 11 | C36: 876.04 | D36: 76.70261723 | E36: 799.3373828 | F36: 91243.8033 | G36: 0.01 | H36: 920.4314068 | I36: -876.04 | J36: 868.0496451 | K36: 91279.61833 | M36: 11 | N36: 500 | O36: 79.8480613 | P36: 420.1519387 | Q36: 95397.52162 | R36: 0.01 | S36: 958.1767356 | T36: -500 | U36: 495.4395014 | V36: 95022.84048 | X36: 11 | Y36: 1271.35 | Z36: 73.3959863 | AA36: 1197.954014 | AB36: 86877.22955 | AC36: 0.01 | AD36: 880.7518356 | AE36: -1271.35 | AF36: 1259.754032 | AG36: 87344.57643
B37: 12 | C37: 876.04 | D37: 76.03650275 | E37: 800.0034973 | F37: 90443.7998 | G37: 0.01 | H37: 912.438033 | I37: -876.04 | J37: 867.3268731 | K37: 90411.56869 | M37: 12 | N37: 500 | O37: 79.49793468 | P37: 420.5020653 | Q37: 94977.01956 | R37: 0.01 | S37: 953.9752162 | T37: -500 | U37: 495.026979 | V37: 94527.40098 | X37: 12 | Y37: 1271.35 | Z37: 72.39769129 | AA37: 1198.952309 | AB37: 85678.27724 | AC37: 0.01 | AD37: 868.7722955 | AE37: -1271.35 | AF37: 1258.705112 | AG37: 86084.8224
B38: 13 | C38: 876.04 | D38: 75.36983316 | E38: 800.6701668 | F38: 89643.12963 | G38: 0.01 | H38: 904.437998 | I38: -876.04 | J38: 866.6047029 | K38: 89544.24181 | M38: 13 | N38: 500 | O38: 79.1475163 | P38: 420.8524837 | Q38: 94556.16707 | R38: 0.01 | S38: 949.7701956 | T38: -500 | U38: 494.6148 | V38: 94032.374 | X38: 13 | Y38: 1271.35 | Z38: 71.39856437 | AA38: 1199.951436 | AB38: 84478.3258 | AC38: 0.01 | AD38: 856.7827724 | AE38: -1271.35 | AF38: 1257.657065 | AG38: 84826.11729
B39: 14 | C39: 876.04 | D39: 74.70260803 | E39: 801.337392 | F39: 88841.79224 | G39: 0.01 | H39: 896.4312963 | I39: -876.04 | J39: 865.8831341 | K39: 88677.63711 | M39: 14 | N39: 500 | O39: 78.79680589 | P39: 421.2031941 | Q39: 94134.96388 | R39: 0.01 | S39: 945.5616707 | T39: -500 | U39: 494.2029643 | V39: 93537.7592 | X39: 14 | Y39: 1271.35 | Z39: 70.39860484 | AA39: 1200.951395 | AB39: 83277.37441 | AC39: 0.01 | AD39: 844.783258 | AE39: -1271.35 | AF39: 1256.609892 | AG39: 83568.46023
B40: 15 | C40: 876.04 | D40: 74.03482687 | E40: 802.0051731 | F40: 88039.78707 | G40: 0.01 | H40: 888.4179224 | I40: -876.04 | J40: 865.162166 | K40: 87811.75398 | M40: 15 | N40: 500 | O40: 78.44580323 | P40: 421.5541968 | Q40: 93713.40968 | R40: 0.01 | S40: 941.3496388 | T40: -500 | U40: 493.7914714 | V40: 93043.55624 | X40: 15 | Y40: 1271.35 | Z40: 69.39781201 | AA40: 1201.952188 | AB40: 82075.42222 | AC40: 0.01 | AD40: 832.7737441 | AE40: -1271.35 | AF40: 1255.56359 | AG40: 82311.85033
B41: 16 | C41: 876.04 | D41: 73.36648922 | E41: 802.6735108 | F41: 87237.11356 | G41: 0.01 | H41: 880.3978707 | I41: -876.04 | J41: 864.4417983 | K41: 86946.59181 | M41: 16 | N41: 500 | O41: 78.09450807 | P41: 421.9054919 | Q41: 93291.50419 | R41: 0.01 | S41: 937.1340968 | T41: -500 | U41: 493.3803212 | V41: 92549.76477 | X41: 16 | Y41: 1271.35 | Z41: 68.39618518 | AA41: 1202.953815 | AB41: 80872.46841 | AC41: 0.01 | AD41: 820.7542222 | AE41: -1271.35 | AF41: 1254.518159 | AG41: 81056.28674
B42: 17 | C42: 876.04 | D42: 72.69759463 | E42: 803.3424054 | F42: 86433.77115 | G42: 0.01 | H42: 872.3711356 | I42: -876.04 | J42: 863.7220303 | K42: 86082.15001 | M42: 17 | N42: 500 | O42: 77.74292016 | P42: 422.2570798 | Q42: 92869.24711 | R42: 0.01 | S42: 932.9150419 | T42: -500 | U42: 492.9695133 | V42: 92056.38444 | X42: 17 | Y42: 1271.35 | Z42: 67.39372367 | AA42: 1203.956276 | AB42: 79668.51213 | AC42: 0.01 | AD42: 808.7246841 | AE42: -1271.35 | AF42: 1253.473599 | AG42: 79801.76859
B43: 18 | C43: 876.04 | D43: 72.02814262 | E43: 804.0118574 | F43: 85629.75929 | G43: 0.01 | H43: 864.3377115 | I43: -876.04 | J43: 863.0028617 | K43: 85218.42798 | M43: 18 | N43: 500 | O43: 77.39103926 | P43: 422.6089607 | Q43: 92446.63815 | R43: 0.01 | S43: 928.6924711 | T43: -500 | U43: 492.5590475 | V43: 91563.41493 | X43: 18 | Y43: 1271.35 | Z43: 66.39042678 | AA43: 1204.959573 | AB43: 78463.55256 | AC43: 0.01 | AD43: 796.6851213 | AE43: -1271.35 | AF43: 1252.429909 | AG43: 78548.29499
B44: 19 | C44: 876.04 | D44: 71.35813274 | E44: 804.6818673 | F44: 84825.07743 | G44: 0.01 | H44: 856.2975929 | I44: -876.04 | J44: 862.2842918 | K44: 84355.42512 | M44: 19 | N44: 500 | O44: 77.03886512 | P44: 422.9611349 | Q44: 92023.67701 | R44: 0.01 | S44: 924.4663815 | T44: -500 | U44: 492.1489235 | V44: 91070.85588 | X44: 19 | Y44: 1271.35 | Z44: 65.3862938 | AA44: 1205.963706 | AB44: 77257.58885 | AC44: 0.01 | AD44: 784.6355256 | AE44: -1271.35 | AF44: 1251.387087 | AG44: 77295.86508
B45: 20 | C45: 876.04 | D45: 70.68756452 | E45: 805.3524355 | F45: 84019.72499 | G45: 0.01 | H45: 848.2507743 | I45: -876.04 | J45: 861.5663203 | K45: 83493.14083 | M45: 20 | N45: 500 | O45: 76.68639751 | P45: 423.3136025 | Q45: 91600.36341 | R45: 0.01 | S45: 920.2367701 | T45: -500 | U45: 491.7391409 | V45: 90578.70696 | X45: 20 | Y45: 1271.35 | Z45: 64.38132404 | AA45: 1206.968676 | AB45: 76050.62017 | AC45: 0.01 | AD45: 772.5758885 | AE45: -1271.35 | AF45: 1250.345134 | AG45: 76044.47799
B46: 21 | C46: 876.04 | D46: 70.01643749 | E46: 806.0235625 | F46: 83213.70143 | G46: 0.01 | H46: 840.1972499 | I46: -876.04 | J46: 860.8489466 | K46: 82631.57451 | M46: 21 | N46: 500 | O46: 76.33363618 | P46: 423.6663638 | Q46: 91176.69705 | R46: 0.01 | S46: 916.0036341 | T46: -500 | U46: 491.3296995 | V46: 90086.96782 | X46: 21 | Y46: 1271.35 | Z46: 63.37551681 | AA46: 1207.974483 | AB46: 74842.64569 | AC46: 0.01 | AD46: 760.5062017 | AE46: -1271.35 | AF46: 1249.304049 | AG46: 74794.13286
B47: 22 | C47: 876.04 | D47: 69.34475119 | E47: 806.6952488 | F47: 82407.00618 | G47: 0.01 | H47: 832.1370143 | I47: -876.04 | J47: 860.1321702 | K47: 81770.72556 | M47: 22 | N47: 500 | O47: 75.98058087 | P47: 424.0194191 | Q47: 90752.67763 | R47: 0.01 | S47: 911.7669705 | T47: -500 | U47: 490.9205991 | V47: 89595.63812 | X47: 22 | Y47: 1271.35 | Z47: 62.36887141 | AA47: 1208.981129 | AB47: 73633.66456 | AC47: 0.01 | AD47: 748.4264569 | AE47: -1271.35 | AF47: 1248.26383 | AG47: 73544.82881
B48: 23 | C48: 876.04 | D48: 68.67250515 | E48: 807.3674949 | F48: 81599.63868 | G48: 0.01 | H48: 824.0700618 | I48: -876.04 | J48: 859.4159906 | K48: 80910.59339 | M48: 23 | N48: 500 | O48: 75.62723136 | P48: 424.3727686 | Q48: 90328.30486 | R48: 0.01 | S48: 907.5267763 | T48: -500 | U48: 490.5118393 | V48: 89104.71752 | X48: 23 | Y48: 1271.35 | Z48: 61.36138714 | AA48: 1209.988613 | AB48: 72423.67595 | AC48: 0.01 | AD48: 736.3366456 | AE48: -1271.35 | AF48: 1247.224477 | AG48: 72296.56498
B49: 24 | C49: 876.04 | D49: 67.9996989 | E49: 808.0403011 | F49: 80791.59838 | G49: 0.01 | H49: 815.9963868 | I49: -876.04 | J49: 858.7004073 | K49: 80051.1774 | M49: 24 | N49: 500 | O49: 75.27358738 | P49: 424.7264126 | Q49: 89903.57845 | R49: 0.01 | S49: 903.2830486 | T49: -500 | U49: 490.1034198 | V49: 88614.20568 | X49: 24 | Y49: 1271.35 | Z49: 60.35306329 | AA49: 1210.996937 | AB49: 71212.67901 | AC49: 0.01 | AD49: 724.2367595 | AE49: -1271.35 | AF49: 1246.18599 | AG49: 71049.3405
B50: 25 | C50: 876.04 | D50: 67.32633199 | E50: 808.713668 | F50: 79982.88471 | G50: 0.01 | H50: 807.9159838 | I50: -876.04 | J50: 857.9854199 | K50: 79192.47699 | M50: 25 | N50: 500 | O50: 74.91964871 | P50: 425.0803513 | Q50: 89478.4981 | R50: 0.01 | S50: 899.0357845 | T50: -500 | U50: 489.6953404 | V50: 88124.10226 | X50: 25 | Y50: 1271.35 | Z50: 59.34389918 | AA50: 1212.006101 | AB50: 70000.67291 | AC50: 0.01 | AD50: 712.1267901 | AE50: -1271.35 | AF50: 1245.148368 | AG50: 69803.15451
B51: 26 | C51: 876.04 | D51: 66.65240393 | E51: 809.3875961 | F51: 79173.49712 | G51: 0.01 | H51: 799.8288471 | I51: -876.04 | J51: 857.2710278 | K51: 78334.49157 | M51: 26 | N51: 500 | O51: 74.56541508 | P51: 425.4345849 | Q51: 89053.06351 | R51: 0.01 | S51: 894.784981 | T51: -500 | U51: 489.2876008 | V51: 87634.40692 | X51: 26 | Y51: 1271.35 | Z51: 58.33389409 | AA51: 1213.016106 | AB51: 68787.65681 | AC51: 0.01 | AD51: 700.0067291 | AE51: -1271.35 | AF51: 1244.111609 | AG51: 68558.00614
B52: 27 | C52: 876.04 | D52: 65.97791427 | E52: 810.0620857 | F52: 78363.43503 | G52: 0.01 | H52: 791.7349712 | I52: -876.04 | J52: 856.5572305 | K52: 77477.22055 | M52: 27 | N52: 500 | O52: 74.21088626 | P52: 425.7891137 | Q52: 88627.2744 | R52: 0.01 | S52: 890.5306351 | T52: -500 | U52: 488.8802007 | V52: 87145.11932 | X52: 27 | Y52: 1271.35 | Z52: 57.32304734 | AA52: 1214.026953 | AB52: 67573.62985 | AC52: 0.01 | AD52: 687.8765681 | AE52: -1271.35 | AF52: 1243.075714 | AG52: 67313.89453
B53: 28 | C53: 876.04 | D53: 65.30286253 | E53: 810.7371375 | F53: 77552.6979 | G53: 0.01 | H53: 783.6343503 | I53: -876.04 | J53: 855.8440275 | K53: 76620.66332 | M53: 28 | N53: 500 | O53: 73.856062 | P53: 426.143938 | Q53: 88201.13046 | R53: 0.01 | S53: 886.272744 | T53: -500 | U53: 488.4731398 | V53: 86656.23912 | X53: 28 | Y53: 1271.35 | Z53: 56.31135821 | AA53: 1215.038642 | AB53: 66358.59121 | AC53: 0.01 | AD53: 675.7362985 | AE53: -1271.35 | AF53: 1242.040681 | AG53: 66070.81882
B54: 29 | C54: 876.04 | D54: 64.62724825 | E54: 811.4127518 | F54: 76741.28514 | G54: 0.01 | H54: 775.526979 | I54: -876.04 | J54: 855.1314184 | K54: 75764.81929 | M54: 29 | N54: 500 | O54: 73.50094205 | P54: 426.499058 | Q54: 87774.6314 | R54: 0.01 | S54: 882.0113046 | T54: -500 | U54: 488.0664178 | V54: 86167.76598 | X54: 29 | Y54: 1271.35 | Z54: 55.29882601 | AA54: 1216.051174 | AB54: 65142.54004 | AC54: 0.01 | AD54: 663.5859121 | AE54: -1271.35 | AF54: 1241.00651 | AG54: 64828.77814
B55: 30 | C55: 876.04 | D55: 63.95107095 | E55: 812.088929 | F55: 75929.19621 | G55: 0.01 | H55: 767.4128514 | I55: -876.04 | J55: 854.4194027 | K55: 74909.68787 | M55: 30 | N55: 500 | O55: 73.14552617 | P55: 426.8544738 | Q55: 87347.77693 | R55: 0.01 | S55: 877.746314 | T55: -500 | U55: 487.6600345 | V55: 85679.69956 | X55: 30 | Y55: 1271.35 | Z55: 54.28545003 | AA55: 1217.06455 | AB55: 63925.47549 | AC55: 0.01 | AD55: 651.4254004 | AE55: -1271.35 | AF55: 1239.9732 | AG55: 63587.77163
B56: 31 | C56: 876.04 | D56: 63.27433018 | E56: 812.7656698 | F56: 75116.43054 | G56: 0.01 | H56: 759.2919621 | I56: -876.04 | J56: 853.7079798 | K56: 74055.26847 | M56: 31 | N56: 500 | O56: 72.78981411 | P56: 427.2101859 | Q56: 86920.56674 | R56: 0.01 | S56: 873.4777693 | T56: -500 | U56: 487.2539896 | V56: 85192.03953 | X56: 31 | Y56: 1271.35 | Z56: 53.27122957 | AA56: 1218.07877 | AB56: 62707.39672 | AC56: 0.01 | AD56: 639.2547549 | AE56: -1271.35 | AF56: 1238.940751 | AG56: 62347.79843
B57: 32 | C57: 876.04 | D57: 62.59702545 | E57: 813.4429745 | F57: 74302.98757 | G57: 0.01 | H57: 751.1643054 | I57: -876.04 | J57: 852.9971492 | K57: 73201.56049 | M57: 32 | N57: 500 | O57: 72.43380562 | P57: 427.5661944 | Q57: 86493.00055 | R57: 0.01 | S57: 869.2056674 | T57: -500 | U57: 486.8482827 | V57: 84704.78554 | X57: 32 | Y57: 1271.35 | Z57: 52.25616393 | AA57: 1219.093836 | AB57: 61488.30288 | AC57: 0.01 | AD57: 627.0739672 | AE57: -1271.35 | AF57: 1237.909161 | AG57: 61108.85768
B58: 33 | C58: 876.04 | D58: 61.91915631 | E58: 814.1208437 | F58: 73488.86673 | G58: 0.01 | H58: 743.0298757 | I58: -876.04 | J58: 852.2869105 | K58: 72348.56334 | M58: 33 | N58: 500 | O58: 72.07750046 | P58: 427.9224995 | Q58: 86065.07805 | R58: 0.01 | S58: 864.9300055 | T58: -500 | U58: 486.4429137 | V58: 84217.93725 | X58: 33 | Y58: 1271.35 | Z58: 51.2402524 | AA58: 1220.109748 | AB58: 60268.19313 | AC58: 0.01 | AD58: 614.8830288 | AE58: -1271.35 | AF58: 1236.87843 | AG58: 59870.94852
B59: 34 | C59: 876.04 | D59: 61.24072227 | E59: 814.7992777 | F59: 72674.06745 | G59: 0.01 | H59: 734.8886673 | I59: -876.04 | J59: 851.5772632 | K59: 71496.27643 | M59: 34 | N59: 500 | O59: 71.72089837 | P59: 428.2791016 | Q59: 85636.79895 | R59: 0.01 | S59: 860.6507805 | T59: -500 | U59: 486.0378822 | V59: 83731.49434 | X59: 34 | Y59: 1271.35 | Z59: 50.22349428 | AA59: 1221.126506 | AB59: 59047.06663 | AC59: 0.01 | AD59: 602.6819313 | AE59: -1271.35 | AF59: 1235.848557 | AG59: 58634.07009
B60: 35 | C60: 876.04 | D60: 60.56172287 | E60: 815.4782771 | F60: 71858.58917 | G60: 0.01 | H60: 726.7406745 | I60: -876.04 | J60: 850.8682068 | K60: 70644.69917 | M60: 35 | N60: 500 | O60: 71.36399912 | P60: 428.6360009 | Q60: 85208.16295 | R60: 0.01 | S60: 856.3679895 | T60: -500 | U60: 485.6331879 | V60: 83245.45646 | X60: 35 | Y60: 1271.35 | Z60: 49.20588886 | AA60: 1222.144111 | AB60: 57824.92252 | AC60: 0.01 | AD60: 590.4706663 | AE60: -1271.35 | AF60: 1234.819542 | AG60: 57398.22153
B61: 36 | C61: 876.04 | D61: 59.88215764 | E61: 816.1578424 | F61: 71042.43133 | G61: 0.01 | H61: 718.5858917 | I61: -876.04 | J61: 850.1597407 | K61: 69793.83096 | M61: 36 | N61: 500 | O61: 71.00680245 | P61: 428.9931975 | Q61: 84779.16975 | R61: 0.01 | S61: 852.0816295 | T61: -500 | U61: 485.2288306 | V61: 82759.82327 | X61: 36 | Y61: 1271.35 | Z61: 48.18743543 | AA61: 1223.162565 | AB61: 56601.75995 | AC61: 0.01 | AD61: 578.2492252 | AE61: -1271.35 | AF61: 1233.791384 | AG61: 56163.40199
B62: 37 | C62: 876.04 | D62: 59.20202611 | E62: 816.8379739 | F62: 70225.59336 | G62: 0.01 | H62: 710.4243133 | I62: -876.04 | J62: 849.4518646 | K62: 68943.67122 | M62: 37 | N62: 500 | O62: 70.64930812 | P62: 429.3506919 | Q62: 84349.81906 | R62: 0.01 | S62: 847.7916975 | T62: -500 | U62: 484.82481 | V62: 82274.59444 | X62: 37 | Y62: 1271.35 | Z62: 47.16813329 | AA62: 1224.181867 | AB62: 55377.57809 | AC62: 0.01 | AD62: 566.0175995 | AE62: -1271.35 | AF62: 1232.764082 | AG62: 54929.6106
B63: 38 | C63: 876.04 | D63: 58.5213278 | E63: 817.5186722 | F63: 69408.07468 | G63: 0.01 | H63: 702.2559336 | I63: -876.04 | J63: 848.7445778 | K63: 68094.21935 | M63: 38 | N63: 500 | O63: 70.29151588 | P63: 429.7084841 | Q63: 83920.11057 | R63: 0.01 | S63: 843.4981906 | T63: -500 | U63: 484.4211257 | V63: 81789.76963 | X63: 38 | Y63: 1271.35 | Z63: 46.14798174 | AA63: 1225.202018 | AB63: 54152.37607 | AC63: 0.01 | AD63: 553.7757809 | AE63: -1271.35 | AF63: 1231.737635 | AG63: 53696.84652
B64: 39 | C64: 876.04 | D64: 57.84006224 | E64: 818.1999378 | F64: 68589.87475 | G64: 0.01 | H64: 694.0807468 | I64: -876.04 | J64: 848.03788 | K64: 67245.47478 | M64: 39 | N64: 500 | O64: 69.93342548 | P64: 430.0665745 | Q64: 83490.044 | R64: 0.01 | S64: 839.2011057 | T64: -500 | U64: 484.0177776 | V64: 81305.3485 | X64: 39 | Y64: 1271.35 | Z64: 45.12698006 | AA64: 1226.22302 | AB64: 52926.15305 | AC64: 0.01 | AD64: 541.5237607 | AE64: -1271.35 | AF64: 1230.712043 | AG64: 52465.10889
B65: 40 | C65: 876.04 | D65: 57.15822895 | E65: 818.881771 | F65: 67770.99297 | G65: 0.01 | H65: 685.8987475 | I65: -876.04 | J65: 847.3317706 | K65: 66397.4369 | M65: 40 | N65: 500 | O65: 69.57503666 | P65: 430.4249633 | Q65: 83059.61903 | R65: 0.01 | S65: 834.90044 | T65: -500 | U65: 483.6147654 | V65: 80821.33073 | X65: 40 | Y65: 1271.35 | Z65: 44.10512754 | AA65: 1227.244872 | AB65: 51698.90818 | AC65: 0.01 | AD65: 529.2615305 | AE65: -1271.35 | AF65: 1229.687304 | AG65: 51234.39684
B66: 41 | C66: 876.04 | D66: 56.47582748 | E66: 819.5641725 | F66: 66951.4288 | G66: 0.01 | H66: 677.7099297 | I66: -876.04 | J66: 846.6262491 | K66: 65550.10512 | M66: 41 | N66: 500 | O66: 69.2163492 | P66: 430.7836508 | Q66: 82628.83538 | R66: 0.01 | S66: 830.5961903 | T66: -500 | U66: 483.2120887 | V66: 80337.71596 | X66: 41 | Y66: 1271.35 | Z66: 43.08242348 | AA66: 1228.267577 | AB66: 50470.6406 | AC66: 0.01 | AD66: 516.9890818 | AE66: -1271.35 | AF66: 1228.663419 | AG66: 50004.70954
B67: 42 | C67: 876.04 | D67: 55.79285733 | E67: 820.2471427 | F67: 66131.18166 | G67: 0.01 | H67: 669.514288 | I67: -876.04 | J67: 845.9213151 | K67: 64703.47888 | M67: 42 | N67: 500 | O67: 68.85736282 | P67: 431.1426372 | Q67: 82197.69275 | R67: 0.01 | S67: 826.2883538 | T67: -500 | U67: 482.8097473 | V67: 79854.50387 | X67: 42 | Y67: 1271.35 | Z67: 42.05886717 | AA67: 1229.291133 | AB67: 49241.34947 | AC67: 0.01 | AD67: 504.706406 | AE67: -1271.35 | AF67: 1227.640387 | AG67: 48776.04612
B68: 43 | C68: 876.04 | D68: 55.10931805 | E68: 820.930682 | F68: 65310.25098 | G68: 0.01 | H68: 661.3118166 | I68: -876.04 | J68: 845.216968 | K68: 63857.55756 | M68: 43 | N68: 500 | O68: 68.49807729 | P68: 431.5019227 | Q68: 81766.19082 | R68: 0.01 | S68: 821.9769275 | T68: -500 | U68: 482.4077409 | V68: 79371.69413 | X68: 43 | Y68: 1271.35 | Z68: 41.03445789 | AA68: 1230.315542 | AB68: 48011.03392 | AC68: 0.01 | AD68: 492.4134947 | AE68: -1271.35 | AF68: 1226.618206 | AG68: 47548.40573
B69: 44 | C69: 876.04 | D69: 54.42520915 | E69: 821.6147909 | F69: 64488.63619 | G69: 0.01 | H69: 653.1025098 | I69: -876.04 | J69: 844.5132074 | K69: 63012.34059 | M69: 44 | N69: 500 | O69: 68.13849235 | P69: 431.8615076 | Q69: 81334.32932 | R69: 0.01 | S69: 817.6619082 | T69: -500 | U69: 482.0060692 | V69: 78889.28639 | X69: 44 | Y69: 1271.35 | Z69: 40.00919494 | AA69: 1231.340805 | AB69: 46779.69312 | AC69: 0.01 | AD69: 480.1103392 | AE69: -1271.35 | AF69: 1225.596876 | AG69: 46321.78753
B70: 45 | C70: 876.04 | D70: 53.74053016 | E70: 822.2994698 | F70: 63666.33672 | G70: 0.01 | H70: 644.8863619 | I70: -876.04 | J70: 843.8100328 | K70: 62167.82739 | M70: 45 | N70: 500 | O70: 67.77860776 | P70: 432.2213922 | Q70: 80902.10792 | R70: 0.01 | S70: 813.3432932 | T70: -500 | U70: 481.604732 | V70: 78407.28032 | X70: 45 | Y70: 1271.35 | Z70: 38.9830776 | AA70: 1232.366922 | AB70: 45547.3262 | AC70: 0.01 | AD70: 467.7969312 | AE70: -1271.35 | AF70: 1224.576397 | AG70: 45096.19065
B71: 46 | C71: 876.04 | D71: 53.0552806 | E71: 822.9847194 | F71: 62843.352 | G71: 0.01 | H71: 636.6633672 | I71: -876.04 | J71: 843.1074436 | K71: 61324.01735 | M71: 46 | N71: 500 | O71: 67.41842327 | P71: 432.5815767 | Q71: 80469.52635 | R71: 0.01 | S71: 809.0210792 | T71: -500 | U71: 481.2037289 | V71: 77925.67558 | X71: 46 | Y71: 1271.35 | Z71: 37.95610516 | AA71: 1233.393895 | AB71: 44313.9323 | AC71: 0.01 | AD71: 455.473262 | AE71: -1271.35 | AF71: 1223.556768 | AG71: 43871.61425
B72: 47 | C72: 876.04 | D72: 52.36946 | E72: 823.67054 | F72: 62019.68146 | G72: 0.01 | H72: 628.43352 | I72: -876.04 | J72: 842.4054395 | K72: 60480.90991 | M72: 47 | N72: 500 | O72: 67.05793862 | P72: 432.9420614 | Q72: 80036.58429 | R72: 0.01 | S72: 804.6952635 | T72: -500 | U72: 480.8030598 | V72: 77444.47185 | X72: 47 | Y72: 1271.35 | Z72: 36.92827692 | AA72: 1234.421723 | AB72: 43079.51058 | AC72: 0.01 | AD72: 443.139323 | AE72: -1271.35 | AF72: 1222.537987 | AG72: 42648.05749 | AI72: 47 | AJ72: =AJ71+10 -> 10 | AK72: =AM71*$D$19/12 -> 0 | AL72: =AJ72-AK72 -> 10 | AM72: =AM71-AL72 -> -10 | AN72: =-AJ72 -> -10 | AP72: 47 | AQ72: =AQ71-10 -> -10 | AR72: =AT71*$D$19/12 -> 0 | AS72: =AQ72-AR72 -> -10 | AT72: =AT71-AS72 -> 10 | AU72: =-AQ72 -> 10
B73: 48 | C73: 876.04 | D73: 51.68306788 | E73: 824.3569321 | F73: 61195.32452 | G73: 0.01 | H73: 620.1968146 | I73: -876.04 | J73: 841.7040199 | K73: 59638.50447 | M73: 48 | N73: 500 | O73: 66.69715357 | P73: 433.3028464 | Q73: 79603.28144 | R73: 0.01 | S73: 800.3658429 | T73: -500 | U73: 480.4027242 | V73: 76963.6688 | X73: 48 | Y73: 1271.35 | Z73: 35.89959215 | AA73: 1235.450408 | AB73: 41844.06017 | AC73: 0.01 | AD73: 430.7951058 | AE73: -1271.35 | AF73: 1221.520055 | AG73: 41425.5195 | AI73: 48 | AJ73: 20 | AK73: -0.008333333333 | AL73: 20.00833333 | AM73: -30.00833333 | AN73: -20 | AP73: 48 | AQ73: -20 | AR73: 0.008333333333 | AS73: -20.00833333 | AT73: 30.00833333 | AU73: 20
B74: 49 | C74: 876.04 | D74: 50.99610377 | E74: 825.0438962 | F74: 60370.28063 | G74: 0.01 | H74: 611.9532452 | I74: -876.04 | J74: 841.0031843 | K74: 58796.80045 | M74: 49 | N74: 500 | O74: 66.33606787 | P74: 433.6639321 | Q74: 79169.61751 | R74: 0.01 | S74: 796.0328144 | T74: -500 | U74: 480.002722 | V74: 76483.26607 | X74: 49 | Y74: 1271.35 | Z74: 34.87005014 | AA74: 1236.47995 | AB74: 40607.58022 | AC74: 0.01 | AD74: 418.4406017 | AE74: -1271.35 | AF74: 1220.50297 | AG74: 40203.99944 | AI74: 49 | AJ74: 30 | AK74: -0.02500694444 | AL74: 30.02500694 | AM74: -60.03334028 | AN74: -30 | AP74: 49 | AQ74: -30 | AR74: 0.02500694444 | AS74: -30.02500694 | AT74: 60.03334028 | AU74: 30
B75: 50 | C75: 876.04 | D75: 50.30856719 | E75: 825.7314328 | F75: 59544.5492 | G75: 0.01 | H75: 603.7028063 | I75: -876.04 | J75: 840.3029322 | K75: 57955.79727 | M75: 50 | N75: 500 | O75: 65.97468126 | P75: 434.0253187 | Q75: 78735.59219 | R75: 0.01 | S75: 791.6961751 | T75: -500 | U75: 479.6030528 | V75: 76003.26335 | X75: 50 | Y75: 1271.35 | Z75: 33.83965018 | AA75: 1237.51035 | AB75: 39370.06987 | AC75: 0.01 | AD75: 406.0758022 | AE75: -1271.35 | AF75: 1219.486733 | AG75: 38983.49647 | AI75: 50 | AJ75: 40 | AK75: -0.05002778356 | AL75: 40.05002778 | AM75: -100.0833681 | AN75: -40 | AP75: 50 | AQ75: -40 | AR75: 0.05002778356 | AS75: -40.05002778 | AT75: 100.0833681 | AU75: 40
B76: 51 | C76: 876.04 | D76: 49.62045766 | E76: 826.4195423 | F76: 58718.12965 | G76: 0.01 | H76: 595.445492 | I76: -876.04 | J76: 839.6032632 | K76: 57115.49433 | M76: 51 | N76: 500 | O76: 65.61299349 | P76: 434.3870065 | Q76: 78301.20518 | R76: 0.01 | S76: 787.3559219 | T76: -500 | U76: 479.2037165 | V76: 75523.6603 | X76: 51 | Y76: 1271.35 | Z76: 32.80839156 | AA76: 1238.541608 | AB76: 38131.52826 | AC76: 0.01 | AD76: 393.7006987 | AE76: -1271.35 | AF76: 1218.471341 | AG76: 37764.00974 | AI76: 51 | AJ76: 50 | AK76: -0.08340280672 | AL76: 50.08340281 | AM76: -150.1667709 | AN76: -50 | AP76: 51 | AQ76: -50 | AR76: 0.08340280672 | AS76: -50.08340281 | AT76: 150.1667709 | AU76: 50
B77: 52 | C77: 876.04 | D77: 48.93177471 | E77: 827.1082253 | F77: 57891.02143 | G77: 0.01 | H77: 587.1812965 | I77: -876.04 | J77: 838.9041768 | K77: 56275.89107 | M77: 52 | N77: 500 | O77: 65.25100432 | P77: 434.7489957 | Q77: 77866.45619 | R77: 0.01 | S77: 783.0120518 | T77: -500 | U77: 478.8047126 | V77: 75044.45658 | X77: 52 | Y77: 1271.35 | Z77: 31.77627355 | AA77: 1239.573726 | AB77: 36891.95454 | AC77: 0.01 | AD77: 381.3152826 | AE77: -1271.35 | AF77: 1217.456795 | AG77: 36545.5384 | AI77: 52 | AJ77: 60 | AK77: -0.1251389757 | AL77: 60.12513898 | AM77: -210.2919098 | AN77: -60 | AP77: 52 | AQ77: -60 | AR77: 0.1251389757 | AS77: -60.12513898 | AT77: 210.2919098 | AU77: 60
B78: 53 | C78: 876.04 | D78: 48.24251786 | E78: 827.7974821 | F78: 57063.22395 | G78: 0.01 | H78: 578.9102143 | I78: -876.04 | J78: 838.2056725 | K78: 55436.98689 | M78: 53 | N78: 500 | O78: 64.88871349 | P78: 435.1112865 | Q78: 77431.3449 | R78: 0.01 | S78: 778.6645619 | T78: -500 | U78: 478.4060409 | V78: 74565.65187 | X78: 53 | Y78: 1271.35 | Z78: 30.74329545 | AA78: 1240.606705 | AB78: 35651.34783 | AC78: 0.01 | AD78: 368.9195454 | AE78: -1271.35 | AF78: 1216.443093 | AG78: 35328.0816 | AI78: 53 | AJ78: 70 | AK78: -0.1752432582 | AL78: 70.17524326 | AM78: -280.4671531 | AN78: -70 | AP78: 53 | AQ78: -70 | AR78: 0.1752432582 | AS78: -70.17524326 | AT78: 280.4671531 | AU78: 70
B79: 54 | C79: 876.04 | D79: 47.55268662 | E79: 828.4873134 | F79: 56234.73663 | G79: 0.01 | H79: 570.6322395 | I79: -876.04 | J79: 837.5077498 | K79: 54598.78122 | M79: 54 | N79: 500 | O79: 64.52612075 | P79: 435.4738793 | Q79: 76995.87102 | R79: 0.01 | S79: 774.313449 | T79: -500 | U79: 478.0077012 | V79: 74087.24583 | X79: 54 | Y79: 1271.35 | Z79: 29.70945653 | AA79: 1241.640543 | AB79: 34409.70729 | AC79: 0.01 | AD79: 356.5134783 | AE79: -1271.35 | AF79: 1215.430236 | AG79: 34111.63851 | AI79: 54 | AJ79: 80 | AK79: -0.2337226276 | AL79: 80.23372263 | AM79: -360.7008757 | AN79: -80 | AP79: 54 | AQ79: -80 | AR79: 0.2337226276 | AS79: -80.23372263 | AT79: 360.7008757 | AU79: 80
B80: 55 | C80: 876.04 | D80: 46.86228053 | E80: 829.1777195 | F80: 55405.55891 | G80: 0.01 | H80: 562.3473663 | I80: -876.04 | J80: 836.8104082 | K80: 53761.27347 | M80: 55 | N80: 500 | O80: 64.16322585 | P80: 435.8367741 | Q80: 76560.03425 | R80: 0.01 | S80: 769.9587102 | T80: -500 | U80: 477.6096932 | V80: 73609.23812 | X80: 55 | Y80: 1271.35 | Z80: 28.67475607 | AA80: 1242.675244 | AB80: 33167.03204 | AC80: 0.01 | AD80: 344.0970729 | AE80: -1271.35 | AF80: 1214.418222 | AG80: 32896.20828 | AI80: 55 | AJ80: 90 | AK80: -0.3005840631 | AL80: 90.30058406 | AM80: -451.0014598 | AN80: -90 | AP80: 55 | AQ80: -90 | AR80: 0.3005840631 | AS80: -90.30058406 | AT80: 451.0014598 | AU80: 90
B81: 56 | C81: 876.04 | D81: 46.17129909 | E81: 829.8687009 | F81: 54575.69021 | G81: 0.01 | H81: 554.0555891 | I81: -876.04 | J81: 836.1136472 | K81: 52924.46306 | M81: 56 | N81: 500 | O81: 63.80002854 | P81: 436.1999715 | Q81: 76123.83427 | R81: 0.01 | S81: 765.6003425 | T81: -500 | U81: 477.2120166 | V81: 73131.62843 | X81: 56 | Y81: 1271.35 | Z81: 27.63919337 | AA81: 1243.710807 | AB81: 31923.32124 | AC81: 0.01 | AD81: 331.6703204 | AE81: -1271.35 | AF81: 1213.40705 | AG81: 31681.79005 | AI81: 56 | AJ81: 100 | AK81: -0.3758345498 | AL81: 100.3758345 | AM81: -551.3772943 | AN81: -100 | AP81: 56 | AQ81: -100 | AR81: 0.3758345498 | AS81: -100.3758345 | AT81: 551.3772943 | AU81: 100
B82: 57 | C82: 876.04 | D82: 45.47974184 | E82: 830.5602582 | F82: 53745.12995 | G82: 0.01 | H82: 545.7569021 | I82: -876.04 | J82: 835.4174664 | K82: 52088.34942 | M82: 57 | N82: 500 | O82: 63.43652856 | P82: 436.5634714 | Q82: 75687.2708 | R82: 0.01 | S82: 761.2383427 | T82: -500 | U82: 476.8146711 | V82: 72654.41642 | X82: 57 | Y82: 1271.35 | Z82: 26.6027677 | AA82: 1244.747232 | AB82: 30678.57401 | AC82: 0.01 | AD82: 319.2332124 | AE82: -1271.35 | AF82: 1212.396721 | AG82: 30468.383 | AI82: 57 | AJ82: 110 | AK82: -0.4594810786 | AL82: 110.4594811 | AM82: -661.8367754 | AN82: -110 | AP82: 57 | AQ82: -110 | AR82: 0.4594810786 | AS82: -110.4594811 | AT82: 661.8367754 | AU82: 110
B83: 58 | C83: 876.04 | D83: 44.7876083 | E83: 831.2523917 | F83: 52913.87756 | G83: 0.01 | H83: 537.4512995 | I83: -876.04 | J83: 834.7218652 | K83: 51252.93195 | M83: 58 | N83: 500 | O83: 63.07272567 | P83: 436.9272743 | Q83: 75250.34353 | R83: 0.01 | S83: 756.872708 | T83: -500 | U83: 476.4176564 | V83: 72177.60174 | X83: 58 | Y83: 1271.35 | Z83: 25.56547834 | AA83: 1245.784522 | AB83: 29432.78948 | AC83: 0.01 | AD83: 306.7857401 | AE83: -1271.35 | AF83: 1211.387233 | AG83: 29255.98628 | AI83: 58 | AJ83: 120 | AK83: -0.5515306462 | AL83: 120.5515306 | AM83: -782.3883061 | AN83: -120 | AP83: 58 | AQ83: -120 | AR83: 0.5515306462 | AS83: -120.5515306 | AT83: 782.3883061 | AU83: 120
B84: 59 | C84: =IF($I$5=1,-PMT($D$19/12,$B$19,$C$19,0,0),ROUND(-PMT($D$19/12,$B$19,$C$19,0,0),2)) -> 876.04 | D84: 44.09489797 | E84: =IF($I$5<>2,C84-D84,ROUND(C84-D84,2)) -> 831.945102 | F84: 52081.93246 | G84: 0.01 | H84: 529.1387756 | I84: -876.04 | J84: 834.0268432 | K84: 50418.21008 | M84: 59 | N84: 500 | O84: 62.70861961 | P84: 437.2913804 | Q84: 74813.05215 | R84: 0.01 | S84: 752.5034353 | T84: -500 | U84: 476.0209723 | V84: 71701.18409 | X84: 59 | Y84: 1271.35 | Z84: 24.52732457 | AA84: 1246.822675 | AB84: 28185.96681 | AC84: 0.01 | AD84: 294.3278948 | AE84: -1271.35 | AF84: 1210.378585 | AG84: 28044.59905 | AI84: 59 | AJ84: 130 | AK84: -0.6519902551 | AL84: 130.6519903 | AM84: -913.0402963 | AN84: -130 | AP84: 59 | AQ84: -130 | AR84: 0.6519902551 | AS84: -130.6519903 | AT84: 913.0402963 | AU84: 130
B85: 60 | C85: =IF($I$5=1,-PMT($D$19/12,$B$19,$C$19,0,0),ROUND(-PMT($D$19/12,$B$19,$C$19,0,0),2)) -> 876.04 | D85: =IF(OR($I$5=1,$I$5=3),F84*$D$19/12,IF($I$5=2,ROUND(F84*$D$19/12,2),ROUNDDOWN(F84*$D$19/12,2))) -> 43.40161038 | E85: =IF($I$5<>2,C85-D85,ROUND(C85-D85,2)) -> 832.6383896 | F85: =IF($I$5<>2,F84-E85,ROUND(F84-E85,2)) -> 51249.29407 | G85: =D85*12/F84 -> 0.01 | H85: =G85*F84 -> 520.8193246 | I85: =-C85 -> -876.04 | J85: =C85*(1+$J$21)^(-B85/12) -> 833.3323999 | K85: 49584.18324 | M85: 60 | N85: 500 | O85: =IF(OR($I$5=1,$I$5=3),Q84*$O$19/12,IF($I$5=2,ROUND(Q84*$O$19/12,2),ROUNDDOWN(Q84*$O$19/12,2))) -> 62.34421012 | P85: =IF($I$5<>2,N85-O85,ROUND(N85-O85,2)) -> 437.6557899 | Q85: 74375.39636 | R85: 0.01 | S85: 748.1305215 | T85: -500 | U85: 475.6246185 | V85: 71225.16312 | X85: 60 | Y85: 1271.35 | Z85: =IF(OR($I$5=1,$I$5=3),AB84*$O$19/12,IF($I$5=2,ROUND(AB84*$O$19/12,2),ROUNDDOWN(AB84*$O$19/12,2))) -> 23.48830567 | AA85: =IF($I$5<>2,Y85-Z85,ROUND(Y85-Z85,2)) -> 1247.861694 | AB85: 26938.10511 | AC85: 0.01 | AD85: 281.8596681 | AE85: -1271.35 | AF85: 1209.370777 | AG85: 26834.22047 | AI85: 60 | AJ85: 140 | AK85: -0.7608669136 | AL85: 140.7608669 | AM85: -1053.801163 | AN85: -140 | AP85: 60 | AQ85: -140 | AR85: 0.7608669136 | AS85: -140.7608669 | AT85: 1053.801163 | AU85: 140
B86: 61 | C86: 876.04 | D86: 42.70774506 | E86: 833.3322549 | F86: 50415.96182 | G86: =D86*12/F85 -> 0.01 | H86: =G86*F85 -> 512.4929407 | I86: =-C86 -> -876.04 | J86: =C86*(1+$J$21)^(-B86/12) -> 832.6385349 | K86: 48750.85084 | M86: 61 | N86: =IF($I$5=1,-PMT($O$19/12,$M$19-$M$85,$Q$85,0,0),ROUND(-PMT($O$19/12,$M$19-$M$85,$Q$85,0,0),2)) -> 1271.35 | O86: =IF(OR($I$5=1,$I$5=3),Q85*$O$19/12,IF($I$5=2,ROUND(Q85*$O$19/12,2),ROUNDDOWN(Q85*$O$19/12,2))) -> 61.97949697 | P86: =IF($I$5<>2,N86-O86,ROUND(N86-O86,2)) -> 1209.370503 | Q86: =IF($I$5<>2,Q85-P86,ROUND(Q85-P86,2)) -> 73166.02586 | R86: =O86*12/Q85 -> 0.01 | S86: 743.7539636 | T86: =-N86 -> -1271.35 | U86: 1208.363748 | V86: 70749.5385 | X86: 61 | Y86: =IF($I$5=1,-PMT($O$19/12,$M$19-$M$85,$AB$85,0,0),ROUND(-PMT($O$19/12,$M$19-$M$85,$AB$85,0,0),2)) -> 460.47 | Z86: =IF(OR($I$5=1,$I$5=3),AB85*$O$19/12,IF($I$5=2,ROUND(AB85*$O$19/12,2),ROUNDDOWN(AB85*$O$19/12,2))) -> 22.44842093 | AA86: =IF($I$5<>2,Y86-Z86,ROUND(Y86-Z86,2)) -> 438.0215791 | AB86: =IF($I$5<>2,AB85-AA86,ROUND(AB85-AA86,2)) -> 26500.08353 | AC86: 0.01 | AD86: 269.3810511 | AE86: -460.47 | AF86: 437.657044 | AG86: 25624.84969 | AI86: 61 | AJ86: 150 | AK86: -0.878167636 | AL86: 150.8781676 | AM86: -1204.679331 | AN86: -150 | AP86: 61 | AQ86: -150 | AR86: 0.878167636 | AS86: -150.8781676 | AT86: 1204.679331 | AU86: 150
B87: 62 | C87: 876.04 | D87: 42.01330151 | E87: 834.0266985 | F87: 49581.93512 | G87: 0.01 | H87: 504.1596182 | I87: -876.04 | J87: 831.9452476 | K87: 47918.21231 | M87: 62 | N87: =IF($I$5=1,-PMT($O$19/12,$M$19-$M$85,$Q$85,0,0),ROUND(-PMT($O$19/12,$M$19-$M$85,$Q$85,0,0),2)) -> 1271.35 | O87: 60.97168821 | P87: 1210.378312 | Q87: 71955.64754 | R87: 0.01 | S87: 731.6602586 | T87: -1271.35 | U87: 1207.357617 | V87: 69541.17475 | X87: 62 | Y87: =IF($I$5=1,-PMT($O$19/12,$M$19-$M$85,$AB$85,0,0),ROUND(-PMT($O$19/12,$M$19-$M$85,$AB$85,0,0),2)) -> 460.47 | Z87: =IF(OR($I$5=1,$I$5=3),AB86*$O$19/12,IF($I$5=2,ROUND(AB86*$O$19/12,2),ROUNDDOWN(AB86*$O$19/12,2))) -> 22.08340295 | AA87: =IF($I$5<>2,Y87-Z87,ROUND(Y87-Z87,2)) -> 438.3865971 | AB87: =IF($I$5<>2,AB86-AA87,ROUND(AB86-AA87,2)) -> 26061.69694 | AC87: 0.01 | AD87: 265.0008353 | AE87: -460.47 | AF87: 437.2926338 | AG87: 25187.19264 | AI87: 62 | AJ87: 160 | AK87: -1.003899442 | AL87: 161.0038994 | AM87: -1365.68323 | AN87: -160 | AP87: 62 | AQ87: -160 | AR87: 1.003899442 | AS87: -161.0038994 | AT87: 1365.68323 | AU87: 160
B88: 63 | C88: 876.04 | D88: 41.31827926 | E88: 834.7217207 | F88: 48747.2134 | G88: 0.01 | H88: 495.8193512 | I88: -876.04 | J88: 831.2525375 | K88: 47086.26706 | M88: 63 | N88: 1271.35 | O88: 59.96303962 | P88: 1211.38696 | Q88: 70744.26058 | R88: 0.01 | S88: 719.5564754 | T88: -1271.35 | U88: 1206.352323 | V88: 68333.81713 | X88: 63 | Y88: 460.47 | Z88: 21.71808078 | AA88: 438.7519192 | AB88: 25622.94502 | AC88: 0.01 | AD88: 260.6169694 | AE88: -460.47 | AF88: 436.9285271 | AG88: 24749.90001 | AI88: 63 | AJ88: 170 | AK88: -1.138069359 | AL88: 171.1380694 | AM88: -1536.8213 | AN88: -170 | AP88: 63 | AQ88: -170 | AR88: 1.138069359 | AS88: -171.1380694 | AT88: 1536.8213 | AU88: 170
B89: 64 | C89: 876.04 | D89: 40.62267783 | E89: 835.4173222 | F89: 47911.79607 | G89: 0.01 | H89: 487.472134 | I89: -876.04 | J89: 830.5604042 | K89: 46255.01452 | M89: 64 | N89: 1271.35 | O89: 58.95355049 | P89: 1212.39645 | Q89: 69531.86413 | R89: 0.01 | S89: 707.4426058 | T89: -1271.35 | U89: 1205.347867 | V89: 67127.46481 | X89: 64 | Y89: 460.47 | Z89: 21.35245418 | AA89: 439.1175458 | AB89: 25183.82747 | AC89: 0.01 | AD89: 256.2294502 | AE89: -460.47 | AF89: 436.5647236 | AG89: 24312.97148 | AI89: 64 | AJ89: 180 | AK89: -1.280684416 | AL89: 181.2806844 | AM89: -1718.101984 | AN89: -180 | AP89: 64 | AQ89: -180 | AR89: 1.280684416 | AS89: -181.2806844 | AT89: 1718.101984 | AU89: 180
B90: 65 | C90: 876.04 | D90: 39.92649673 | E90: 836.1135033 | F90: 47075.68257 | G90: 0.01 | H90: 479.1179607 | I90: -876.04 | J90: 829.8688473 | K90: =J90+K91 -> 45424.45412 | M90: 65 | N90: 1271.35 | O90: 57.94322011 | P90: 1213.40678 | Q90: 68318.45735 | R90: 0.01 | S90: 695.3186413 | T90: -1271.35 | U90: 1204.344247 | V90: =V91+U90 -> 65922.11694 | X90: 65 | Y90: 460.47 | Z90: 20.98652289 | AA90: 439.4834771 | AB90: 24744.344 | AC90: 0.01 | AD90: 251.8382747 | AE90: -460.47 | AF90: 436.201223 | AG90: =AG91+AF90 -> 23876.40676 | AI90: 65 | AJ90: 190 | AK90: -1.431751653 | AL90: 191.4317517 | AM90: -1909.533736 | AN90: -190 | AP90: 65 | AQ90: -190 | AR90: 1.431751653 | AS90: -191.4317517 | AT90: 1909.533736 | AU90: 190
B91: 66 | C91: 876.04 | D91: 39.22973548 | E91: 836.8102645 | F91: 46238.87231 | G91: 0.01 | H91: 470.7568257 | I91: -876.04 | J91: 829.1778661 | K91: 44594.58527 | M91: 66 | N91: 1271.35 | O91: =IF(OR($I$5=1,$I$5=3),Q90*$O$19/12,IF($I$5=2,ROUND(Q90*$O$19/12,2),ROUNDDOWN(Q90*$O$19/12,2))) -> 56.9320478 | P91: =IF($I$5<>2,N91-O91,ROUND(N91-O91,2)) -> 1214.417952 | Q91: =IF($I$5<>2,Q90-P91,ROUND(Q90-P91,2)) -> 67104.0394 | R91: 0.01 | S91: =R91*Q90 -> 683.1845735 | T91: -1271.35 | U91: =N91*(1+$U$21)^(-M91/12) -> 1203.341462 | V91: 64717.7727 | X91: 66 | Y91: 460.47 | Z91: 20.62028666 | AA91: 439.8497133 | AB91: 24304.49428 | AC91: =Z91*12/AB90 -> 0.01 | AD91: =AC91*AB90 -> 247.44344 | AE91: =-Y91 -> -460.47 | AF91: =Y91*(1+$AF$21)^(-X91/12) -> 435.838025 | AG91: 23440.20554 | AI91: 66 | AJ91: 200 | AK91: -1.591278113 | AL91: 201.5912781 | AM91: -2111.125014 | AN91: -200 | AP91: 66 | AQ91: -200 | AR91: 1.591278113 | AS91: -201.5912781 | AT91: 2111.125014 | AU91: 200
B92: 67 | C92: 876.04 | D92: 38.53239359 | E92: 837.5076064 | F92: 45401.3647 | G92: 0.01 | H92: 462.3887231 | I92: -876.04 | J92: 828.4874603 | K92: 43765.4074 | M92: 67 | N92: 1271.35 | O92: 55.92003283 | P92: 1215.429967 | Q92: 65888.60943 | R92: 0.01 | S92: 671.040394 | T92: -1271.35 | U92: 1202.339513 | V92: 63514.43123 | X92: 67 | Y92: 460.47 | Z92: 20.25374524 | AA92: 440.2162548 | AB92: 23864.27803 | AC92: 0.01 | AD92: 243.0449428 | AE92: -460.47 | AF92: 435.4751295 | AG92: 23004.36751 | AI92: 67 | AJ92: 210 | AK92: -1.759270845 | AL92: 211.7592708 | AM92: -2322.884285 | AN92: -210 | AP92: 67 | AQ92: =AQ91-10 -> -210 | AR92: 1.759270845 | AS92: -211.7592708 | AT92: 2322.884285 | AU92: 210
B93: 68 | C93: 876.04 | D93: 37.83447058 | E93: 838.2055294 | F93: 44563.15917 | G93: 0.01 | H93: 454.013647 | I93: -876.04 | J93: 827.7976293 | K93: 42936.91994 | M93: 68 | N93: 1271.35 | O93: 54.90717453 | P93: 1216.442825 | Q93: 64672.16661 | R93: 0.01 | S93: 658.8860943 | T93: -1271.35 | U93: 1201.338398 | V93: 62312.09172 | X93: 68 | Y93: 460.47 | Z93: 19.88689836 | AA93: 440.5831016 | AB93: 23423.69493 | AC93: 0.01 | AD93: 238.6427803 | AE93: -460.47 | AF93: 435.1125361 | AG93: 22568.89238 | AI93: 68 | AJ93: 220 | AK93: -1.935736904 | AL93: 221.9357369 | AM93: -2544.820022 | AN93: -220 | AP93: 68 | AQ93: -220 | AR93: 1.935736904 | AS93: -221.9357369 | AT93: 2544.820022 | AU93: 220
B94: 69 | C94: 876.04 | D94: 37.13596598 | E94: 838.904034 | F94: 43724.25514 | G94: 0.01 | H94: 445.6315917 | I94: -876.04 | J94: 827.1083727 | K94: 42109.12231 | M94: 69 | N94: 1271.35 | O94: 53.89347217 | P94: 1217.456528 | Q94: 63454.71008 | R94: 0.01 | S94: 646.7216661 | T94: -1271.35 | U94: 1200.338116 | V94: 61110.75332 | X94: 69 | Y94: 460.47 | Z94: 19.51974577 | AA94: 440.9502542 | AB94: 22982.74467 | AC94: 0.01 | AD94: 234.2369493 | AE94: -460.47 | AF94: 434.7502447 | AG94: 22133.77985 | AI94: 69 | AJ94: 230 | AK94: -2.120683351 | AL94: 232.1206834 | AM94: -2776.940705 | AN94: -230 | AP94: 69 | AQ94: -230 | AR94: 2.120683351 | AS94: -232.1206834 | AT94: 2776.940705 | AU94: 230
B95: 70 | C95: 876.04 | D95: 36.43687928 | E95: 839.6031207 | F95: 42884.65202 | G95: 0.01 | H95: 437.2425514 | I95: -876.04 | J95: 826.41969 | K95: 41282.01394 | M95: 70 | N95: 1271.35 | O95: 52.87892507 | P95: 1218.471075 | Q95: 62236.23901 | R95: 0.01 | S95: 634.5471008 | T95: -1271.35 | U95: 1199.338667 | V95: 59910.41521 | X95: 70 | Y95: 460.47 | Z95: 19.15228723 | AA95: 441.3177128 | AB95: 22541.42696 | AC95: 0.01 | AD95: 229.8274467 | AE95: -460.47 | AF95: 434.3882548 | AG95: 21699.0296 | AI95: 70 | AJ95: 240 | AK95: -2.314117254 | AL95: 242.3141173 | AM95: -3019.254822 | AN95: -240 | AP95: 70 | AQ95: -240 | AR95: 2.314117254 | AS95: -242.3141173 | AT95: 3019.254822 | AU95: 240
B96: 71 | C96: 876.04 | D96: 35.73721001 | E96: 840.30279 | F96: 42044.34923 | G96: 0.01 | H96: 428.8465202 | I96: -876.04 | J96: 825.7315808 | K96: 40455.59425 | M96: 71 | N96: 1271.35 | O96: 51.86353251 | P96: 1219.486467 | Q96: 61016.75254 | R96: 0.01 | S96: 622.3623901 | T96: -1271.35 | U96: 1198.340051 | V96: 58711.07654 | X96: 71 | Y96: 460.47 | Z96: 18.78452247 | AA96: 441.6854775 | AB96: 22099.74148 | AC96: 0.01 | AD96: 225.4142696 | AE96: -460.47 | AF96: 434.0265664 | AG96: 21264.64135 | AI96: 71 | AJ96: 250 | AK96: -2.516045685 | AL96: 252.5160457 | AM96: -3271.770868 | AN96: -250 | AP96: 71 | AQ96: -250 | AR96: 2.516045685 | AS96: -252.5160457 | AT96: 3271.770868 | AU96: 250
B97: 72 | C97: 876.04 | D97: 35.03695769 | E97: 841.0030423 | F97: 41203.34618 | G97: 0.01 | H97: 420.4434923 | I97: -876.04 | J97: 825.0440445 | K97: 39629.86267 | M97: 72 | N97: 1271.35 | O97: 50.84729378 | P97: 1220.502706 | Q97: 59796.24983 | R97: 0.01 | S97: 610.1675254 | T97: -1271.35 | U97: 1197.342265 | V97: 57512.73649 | X97: 72 | Y97: 460.47 | Z97: 18.41645123 | AA97: 442.0535488 | AB97: 21657.68793 | AC97: 0.01 | AD97: 220.9974148 | AE97: -460.47 | AF97: 433.6651792 | AG97: 20830.61478 | AI97: 72 | AJ97: 260 | AK97: -2.726475723 | AL97: 262.7264757 | AM97: -3534.497344 | AN97: -260 | AP97: 72 | AQ97: -260 | AR97: 2.726475723 | AS97: -262.7264757 | AT97: 3534.497344 | AU97: 260
B98: 73 | C98: 876.04 | D98: 34.33612182 | E98: 841.7038782 | F98: 40361.64231 | G98: 0.01 | H98: 412.0334618 | I98: -876.04 | J98: 824.3570806 | K98: 38804.81863 | M98: 73 | N98: 1271.35 | O98: 49.83020819 | P98: 1221.519792 | Q98: 58574.73004 | R98: 0.01 | S98: 597.9624983 | T98: -1271.35 | U98: 1196.345311 | V98: 56315.39422 | X98: 73 | Y98: 460.47 | Z98: 18.04807328 | AA98: 442.4219267 | AB98: 21215.26601 | AC98: 0.01 | AD98: 216.5768793 | AE98: -460.47 | AF98: 433.3040929 | AG98: 20396.9496 | AI98: 73 | AJ98: 270 | AK98: -2.945414453 | AL98: 272.9454145 | AM98: -3807.442758 | AN98: -270 | AP98: 73 | AQ98: -270 | AR98: 2.945414453 | AS98: -272.9454145 | AT98: 3807.442758 | AU98: 270
B99: 74 | C99: 876.04 | D99: 33.63470192 | E99: 842.4052981 | F99: 39519.23701 | G99: 0.01 | H99: 403.6164231 | I99: -876.04 | J99: 823.6706888 | K99: 37980.46154 | M99: 74 | N99: 1271.35 | O99: 48.81227503 | P99: 1222.537725 | Q99: 57352.19232 | R99: 0.01 | S99: 585.7473004 | T99: -1271.35 | U99: 1195.349187 | V99: 55119.04891 | X99: 74 | Y99: 460.47 | Z99: 17.67938834 | AA99: 442.7906117 | AB99: 20772.47539 | AC99: 0.01 | AD99: 212.1526601 | AE99: -460.47 | AF99: 432.9433072 | AG99: 19963.64551 | AI99: 74 | AJ99: 280 | AK99: -3.172868965 | AL99: 283.172869 | AM99: -4090.615627 | AN99: -280 | AP99: 74 | AQ99: -280 | AR99: 3.172868965 | AS99: -283.172869 | AT99: 4090.615627 | AU99: 280
B100: 75 | C100: 876.04 | D100: 32.93269751 | E100: 843.1073025 | F100: 38676.12971 | G100: 0.01 | H100: 395.1923701 | I100: -876.04 | J100: 822.9848684 | K100: 37156.79086 | M100: 75 | N100: 1271.35 | O100: 47.7934936 | P100: 1223.556506 | Q100: 56128.63581 | R100: 0.01 | S100: 573.5219232 | T100: -1271.35 | U100: 1194.353892 | V100: 53923.69973 | X100: 75 | Y100: 460.47 | Z100: 17.31039616 | AA100: 443.1596038 | AB100: 20329.31579 | AC100: 0.01 | AD100: 207.7247539 | AE100: -460.47 | AF100: 432.5828219 | AG100: 19530.7022 | AI100: 75 | AJ100: 290 | AK100: -3.408846356 | AL100: 293.4088464 | AM100: -4384.024473 | AN100: -290 | AP100: 75 | AQ100: -290 | AR100: 3.408846356 | AS100: -293.4088464 | AT100: 4384.024473 | AU100: 290
B101: 76 | C101: 876.04 | D101: 32.23010809 | E101: 843.8098919 | F101: 37832.31981 | G101: 0.01 | H101: 386.7612971 | I101: -876.04 | J101: 822.2996191 | K101: 36333.80599 | M101: 76 | N101: 1271.35 | O101: 46.77386317 | P101: 1224.576137 | Q101: 54904.05967 | R101: 0.01 | S101: 561.2863581 | T101: -1271.35 | U101: 1193.359426 | V101: 52729.34583 | X101: 76 | Y101: 460.47 | Z101: 16.94109649 | AA101: 443.5289035 | AB101: 19885.78689 | AC101: 0.01 | AD101: 203.2931579 | AE101: -460.47 | AF101: 432.2226368 | AG101: 19098.11938 | AI101: 76 | AJ101: 300 | AK101: -3.653353728 | AL101: 303.6533537 | AM101: -4687.677827 | AN101: -300 | AP101: 76 | AQ101: -300 | AR101: 3.653353728 | AS101: -303.6533537 | AT101: 4687.677827 | AU101: 300
B102: 77 | C102: 876.04 | D102: 31.52693318 | E102: 844.5130668 | F102: 36987.80675 | G102: 0.01 | H102: 378.3231981 | I102: -876.04 | J102: 821.6149404 | K102: 35511.50637 | M102: 77 | N102: 1271.35 | O102: 45.75338306 | P102: 1225.596617 | Q102: 53678.46306 | R102: 0.01 | S102: 549.0405967 | T102: -1271.35 | U102: 1192.365788 | V102: 51535.98641 | X102: 77 | Y102: 460.47 | Z102: 16.57148907 | AA102: 443.8985109 | AB102: 19441.88838 | AC102: 0.01 | AD102: 198.8578689 | AE102: -460.47 | AF102: 431.8627515 | AG102: 18665.89674 | AI102: 77 | AJ102: 310 | AK102: -3.906398189 | AL102: 313.9063982 | AM102: -5001.584225 | AN102: -310 | AP102: 77 | AQ102: -310 | AR102: 3.906398189 | AS102: -313.9063982 | AT102: 5001.584225 | AU102: 310
B103: 78 | C103: 876.04 | D103: 30.82317229 | E103: 845.2168277 | F103: 36142.58992 | G103: 0.01 | H103: 369.8780675 | I103: -876.04 | J103: 820.9308318 | K103: 34689.89143 | M103: 78 | N103: 1271.35 | O103: 44.73205255 | P103: 1226.617947 | Q103: 52451.84511 | R103: 0.01 | S103: 536.7846306 | T103: -1271.35 | U103: 1191.372977 | V103: 50343.62062 | X103: 78 | Y103: 460.47 | Z103: 16.20157365 | AA103: 444.2684264 | AB103: 18997.61995 | AC103: 0.01 | AD103: 194.4188838 | AE103: -460.47 | AF103: 431.503166 | AG103: 18234.03399 | AI103: 78 | AJ103: 320 | AK103: -4.167986854 | AL103: 324.1679869 | AM103: -5325.752212 | AN103: -320 | AP103: 78 | AQ103: -320 | AR103: 4.167986854 | AS103: -324.1679869 | AT103: 5325.752212 | AU103: 320
B104: 79 | C104: 876.04 | D104: 30.11882493 | E104: 845.9211751 | F104: 35296.66874 | G104: 0.01 | H104: 361.4258992 | I104: -876.04 | J104: 820.2472928 | K104: 33868.9606 | M104: 79 | N104: 1271.35 | O104: 43.70987092 | P104: 1227.640129 | Q104: 51224.20498 | R104: 0.01 | S104: 524.5184511 | T104: -1271.35 | U104: 1190.380993 | V104: 49152.24764 | X104: 79 | Y104: 460.47 | Z104: 15.83134996 | AA104: 444.63865 | AB104: 18552.9813 | AC104: 0.01 | AD104: 189.9761995 | AE104: -460.47 | AF104: 431.1438798 | AG104: 17802.53082 | AI104: 79 | AJ104: =AJ103+10 -> 330 | AK104: =AM103*$D$19/12 -> -4.438126843 | AL104: =AJ104-AK104 -> 334.4381268 | AM104: =AM103-AL104 -> -5660.190339 | AN104: =-AJ104 -> -330 | AP104: 79 | AQ104: -330 | AR104: =AT103*$D$19/12 -> 4.438126843 | AS104: =AQ104-AR104 -> -334.4381268 | AT104: =AT103-AS104 -> 5660.190339 | AU104: =-AQ104 -> 330
B105: 80 | C105: 876.04 | D105: 29.41389062 | E105: 846.6261094 | F105: 34450.04263 | G105: 0.01 | H105: 352.9666874 | I105: -876.04 | J105: 819.5643229 | K105: 33048.7133 | M105: 80 | N105: 1271.35 | O105: 42.68683748 | P105: 1228.663163 | Q105: 49995.54182 | R105: 0.01 | S105: 512.2420498 | T105: -1271.35 | U105: 1189.389835 | V105: 47961.86665 | X105: 80 | Y105: 460.47 | Z105: 15.46081775 | AA105: 445.0091823 | AB105: 18107.97212 | AC105: 0.01 | AD105: 185.529813 | AE105: -460.47 | AF105: 430.7848928 | AG105: 17371.38694 | AI105: 80 | AJ105: 340 | AK105: -4.716825283 | AL105: 344.7168253 | AM105: -6004.907164 | AN105: -340 | AP105: 80 | AQ105: -340 | AR105: 4.716825283 | AS105: -344.7168253 | AT105: 6004.907164 | AU105: 340
B106: 81 | C106: 876.04 | D106: 28.70836886 | E106: 847.3316311 | F106: 33602.711 | G106: 0.01 | H106: 344.5004263 | I106: -876.04 | J106: 818.8819217 | K106: 32229.14898 | M106: 81 | N106: 1271.35 | O106: 41.66295151 | P106: 1229.687048 | Q106: 48765.85477 | R106: 0.01 | S106: 499.9554182 | T106: -1271.35 | U106: 1188.399502 | V106: 46772.47681 | X106: 81 | Y106: 460.47 | Z106: 15.08997676 | AA106: 445.3800232 | AB106: 17662.59209 | AC106: 0.01 | AD106: 181.0797212 | AE106: -460.47 | AF106: 430.4262047 | AG106: 16940.60205 | AI106: 81 | AJ106: 350 | AK106: -5.004089304 | AL106: 355.0040893 | AM106: -6359.911254 | AN106: -350 | AP106: 81 | AQ106: -350 | AR106: 5.004089304 | AS106: -355.0040893 | AT106: 6359.911254 | AU106: 350
B107: 82 | C107: 876.04 | D107: 28.00225917 | E107: 848.0377408 | F107: 32754.67326 | G107: 0.01 | H107: 336.02711 | I107: -876.04 | J107: 818.2000886 | K107: 31410.26706 | M107: 82 | N107: 1271.35 | O107: 40.63821231 | P107: 1230.711788 | Q107: 47535.14298 | R107: 0.01 | S107: 487.6585477 | T107: -1271.35 | U107: 1187.409994 | V107: 45584.07731 | X107: 82 | Y107: 460.47 | Z107: 14.71882674 | AA107: 445.7511733 | AB107: 17216.84092 | AC107: 0.01 | AD107: 176.6259209 | AE107: -460.47 | AF107: 430.0678152 | AG107: 16510.17585 | AI107: 82 | AJ107: 360 | AK107: -5.299926045 | AL107: 365.299926 | AM107: -6725.21118 | AN107: -360 | AP107: 82 | AQ107: -360 | AR107: 5.299926045 | AS107: -365.299926 | AT107: 6725.21118 | AU107: 360
B108: 83 | C108: 876.04 | D108: 27.29556105 | E108: 848.7444389 | F108: 31905.92882 | G108: 0.01 | H108: 327.5467326 | I108: -876.04 | J108: 817.5188233 | K108: 30592.06697 | M108: 83 | N108: 1271.35 | O108: 39.61261915 | P108: 1231.737381 | Q108: 46303.4056 | R108: 0.01 | S108: 475.3514298 | T108: -1271.35 | U108: 1186.42131 | V108: 44396.66732 | X108: 83 | Y108: 460.47 | Z108: 14.34736743 | AA108: 446.1226326 | AB108: 16770.71829 | AC108: 0.01 | AD108: 172.1684092 | AE108: -460.47 | AF108: 429.7097242 | AG108: 16080.10803 | AI108: 83 | AJ108: 370 | AK108: -5.60434265 | AL108: 375.6043426 | AM108: -7100.815522 | AN108: -370 | AP108: 83 | AQ108: -370 | AR108: 5.60434265 | AS108: -375.6043426 | AT108: 7100.815522 | AU108: 370
B109: 84 | C109: 876.04 | D109: 26.58827402 | E109: 849.451726 | F109: 31056.4771 | G109: 0.01 | H109: 319.0592882 | I109: -876.04 | J109: 816.8381253 | K109: 29774.54815 | M109: 84 | N109: 1271.35 | O109: 38.58617133 | P109: 1232.763829 | Q109: 45070.64177 | R109: 0.01 | S109: 463.034056 | T109: -1271.35 | U109: 1185.433449 | V109: 43210.24601 | X109: 84 | Y109: 460.47 | Z109: 13.97559857 | AA109: 446.4944014 | AB109: 16324.22389 | AC109: 0.01 | AD109: 167.7071829 | AE109: -460.47 | AF109: 429.3519313 | AG109: 15650.39831 | AI109: 84 | AJ109: 380 | AK109: -5.917346269 | AL109: 385.9173463 | AM109: -7486.732869 | AN109: -380 | AP109: 84 | AQ109: -380 | AR109: 5.917346269 | AS109: -385.9173463 | AT109: 7486.732869 | AU109: 380
B110: 85 | C110: 876.04 | D110: 25.88039758 | E110: 850.1596024 | F110: 30206.31749 | G110: 0.01 | H110: 310.564771 | I110: -876.04 | J110: 816.157994 | K110: 28957.71002 | M110: 85 | N110: 1271.35 | O110: 37.55886814 | P110: 1233.791132 | Q110: 43836.85064 | R110: 0.01 | S110: 450.7064177 | T110: -1271.35 | U110: 1184.44641 | V110: 42024.81256 | X110: 85 | Y110: 460.47 | Z110: 13.60351991 | AA110: 446.8664801 | AB110: 15877.35741 | AC110: 0.01 | AD110: 163.2422389 | AE110: -460.47 | AF110: 428.9944363 | AG110: 15221.04638 | AI110: 85 | AJ110: 390 | AK110: -6.238944057 | AL110: 396.2389441 | AM110: -7882.971813 | AN110: -390 | AP110: 85 | AQ110: -390 | AR110: 6.238944057 | AS110: -396.2389441 | AT110: 7882.971813 | AU110: 390
B111: 86 | C111: 876.04 | D111: 25.17193125 | E111: 850.8680688 | F111: 29355.44943 | G111: 0.01 | H111: 302.0631749 | I111: -876.04 | J111: 815.478429 | K111: 28141.55203 | M111: 86 | N111: 1271.35 | O111: 36.53070887 | P111: 1234.819291 | Q111: 42602.03135 | R111: 0.01 | S111: 438.3685064 | T111: -1271.35 | U111: 1183.460194 | V111: 40840.36615 | X111: 86 | Y111: 460.47 | Z111: 13.23113117 | AA111: 447.2388688 | AB111: 15430.11854 | AC111: 0.01 | AD111: 158.7735741 | AE111: -460.47 | AF111: 428.637239 | AG111: 14792.05194 | AI111: 86 | AJ111: 400 | AK111: -6.569143177 | AL111: 406.5691432 | AM111: -8289.540956 | AN111: -400 | AP111: 86 | AQ111: -400 | AR111: 6.569143177 | AS111: -406.5691432 | AT111: 8289.540956 | AU111: 400
B112: 87 | C112: 876.04 | D112: 24.46287452 | E112: 851.5771255 | F112: 28503.8723 | G112: 0.01 | H112: 293.5544943 | I112: -876.04 | J112: 814.7994299 | K112: 27326.0736 | M112: 87 | N112: 1271.35 | O112: 35.50169279 | P112: 1235.848307 | Q112: 41366.18304 | R112: 0.01 | S112: 426.0203135 | T112: -1271.35 | U112: 1182.474798 | V112: 39656.90595 | X112: 87 | Y112: 460.47 | Z112: 12.85843211 | AA112: 447.6115679 | AB112: 14982.50697 | AC112: 0.01 | AD112: 154.3011854 | AE112: -460.47 | AF112: 428.2803392 | AG112: 14363.4147 | AI112: 87 | AJ112: 410 | AK112: -6.907950796 | AL112: 416.9079508 | AM112: -8706.448907 | AN112: -410 | AP112: 87 | AQ112: -410 | AR112: 6.907950796 | AS112: -416.9079508 | AT112: 8706.448907 | AU112: 410
B113: 88 | C113: 876.04 | D113: 23.75322692 | E113: 852.2867731 | F113: 27651.58553 | G113: 0.01 | H113: 285.038723 | I113: -876.04 | J113: 814.1209961 | K113: 26511.27417 | M113: 88 | N113: 1271.35 | O113: 34.4718192 | P113: 1236.878181 | Q113: 40129.30486 | R113: 0.01 | S113: 413.6618304 | T113: -1271.35 | U113: 1181.490223 | V113: 38474.43116 | X113: 88 | Y113: 460.47 | Z113: 12.48542247 | AA113: 447.9845775 | AB113: 14534.52239 | AC113: 0.01 | AD113: 149.8250697 | AE113: -460.47 | AF113: 427.9237364 | AG113: 13935.13436 | AI113: 88 | AJ113: 420 | AK113: -7.255374089 | AL113: 427.2553741 | AM113: -9133.704281 | AN113: -420 | AP113: 88 | AQ113: -420 | AR113: 7.255374089 | AS113: -427.2553741 | AT113: 9133.704281 | AU113: 420
B114: 89 | C114: 876.04 | D114: 23.04298794 | E114: 852.9970121 | F114: 26798.58852 | G114: 0.01 | H114: 276.5158553 | I114: -876.04 | J114: 813.4431272 | K114: 25697.15317 | M114: 89 | N114: 1271.35 | O114: 33.44108738 | P114: 1237.908913 | Q114: 38891.39595 | R114: 0.01 | S114: 401.2930486 | T114: -1271.35 | U114: 1180.506468 | V114: 37292.94093 | X114: 89 | Y114: 460.47 | Z114: 12.11210199 | AA114: 448.357898 | AB114: 14086.16449 | AC114: 0.01 | AD114: 145.3452239 | AE114: -460.47 | AF114: 427.5674306 | AG114: 13507.21063 | AI114: 89 | AJ114: 430 | AK114: -7.611420234 | AL114: 437.6114202 | AM114: -9571.315701 | AN114: -430 | AP114: 89 | AQ114: -430 | AR114: 7.611420234 | AS114: -437.6114202 | AT114: 9571.315701 | AU114: 430
B115: 90 | C115: 876.04 | D115: 22.3321571 | E115: 853.7078429 | F115: 25944.88067 | G115: 0.01 | H115: 267.9858852 | I115: -876.04 | J115: 812.7658228 | K115: 24883.71005 | M115: 90 | N115: 1271.35 | O115: 32.40949662 | P115: 1238.940503 | Q115: 37652.45544 | R115: 0.01 | S115: 388.9139595 | T115: -1271.35 | U115: 1179.523532 | V115: 36112.43447 | X115: 90 | Y115: 460.47 | Z115: 11.73847041 | AA115: 448.7315296 | AB115: 13637.43296 | AC115: 0.01 | AD115: 140.8616449 | AE115: -460.47 | AF115: 427.2114215 | AG115: 13079.6432 | AI115: 90 | AJ115: 440 | AK115: -7.976096417 | AL115: 447.9760964 | AM115: -10019.2918 | AN115: -440 | AP115: 90 | AQ115: -440 | AR115: 7.976096417 | AS115: -447.9760964 | AT115: 10019.2918 | AU115: 440
B116: 91 | C116: 876.04 | D116: 21.62073389 | E116: 854.4192661 | F116: 25090.46141 | G116: 0.01 | H116: 259.4488067 | I116: -876.04 | J116: 812.0890823 | K116: 24070.94422 | M116: 91 | N116: 1271.35 | O116: 31.3770462 | P116: 1239.972954 | Q116: 36412.48249 | R116: 0.01 | S116: 376.5245544 | T116: -1271.35 | U116: 1178.541414 | V116: 34932.91093 | X116: 91 | Y116: 460.47 | Z116: 11.36452747 | AA116: 449.1054725 | AB116: 13188.32749 | AC116: 0.01 | AD116: 136.3743296 | AE116: -460.47 | AF116: 426.8557088 | AG116: 12652.43177 | AI116: 91 | AJ116: 450 | AK116: -8.349409831 | AL116: 458.3494098 | AM116: -10477.64121 | AN116: -450 | AP116: 91 | AQ116: -450 | AR116: 8.349409831 | AS116: -458.3494098 | AT116: 10477.64121 | AU116: 450
B117: 92 | C117: 876.04 | D117: 20.90871784 | E117: 855.1312822 | F117: 24235.33012 | G117: 0.01 | H117: 250.9046141 | I117: -876.04 | J117: 811.4129052 | K117: 23258.85514 | M117: 92 | N117: 1271.35 | O117: 30.34373541 | P117: 1241.006265 | Q117: 35171.47623 | R117: 0.01 | S117: 364.1248249 | T117: -1271.35 | U117: 1177.560114 | V117: 33754.36952 | X117: 92 | Y117: 460.47 | Z117: 10.99027291 | AA117: 449.4797271 | AB117: 12738.84777 | AC117: 0.01 | AD117: 131.8832749 | AE117: -460.47 | AF117: 426.5002923 | AG117: 12225.57606 | AI117: 92 | AJ117: 460 | AK117: -8.731367673 | AL117: 468.7313677 | AM117: -10946.37257 | AN117: -460 | AP117: 92 | AQ117: -460 | AR117: 8.731367673 | AS117: -468.7313677 | AT117: 10946.37257 | AU117: 460
B118: 93 | C118: 876.04 | D118: 20.19610844 | E118: 855.8438916 | F118: 23379.48623 | G118: 0.01 | H118: 242.3533012 | I118: -876.04 | J118: 810.7372912 | K118: 22447.44223 | M118: 93 | N118: 1271.35 | O118: 29.30956352 | P118: 1242.040436 | Q118: 33929.43579 | R118: 0.01 | S118: 351.7147623 | T118: -1271.35 | U118: 1176.579631 | V118: 32576.80941 | X118: 93 | Y118: 460.47 | Z118: 10.61570647 | AA118: 449.8542935 | AB118: 12288.99347 | AC118: 0.01 | AD118: 127.3884777 | AE118: -460.47 | AF118: 426.1451717 | AG118: 11799.07577 | AI118: 93 | AJ118: 470 | AK118: -9.121977146 | AL118: 479.1219771 | AM118: -11425.49455 | AN118: -470 | AP118: 93 | AQ118: -470 | AR118: 9.121977146 | AS118: -479.1219771 | AT118: 11425.49455 | AU118: 470
B119: 94 | C119: 876.04 | D119: 19.48290519 | E119: 856.5570948 | F119: 22522.92914 | G119: 0.01 | H119: 233.7948623 | I119: -876.04 | J119: 810.0622397 | K119: 21636.70494 | M119: 94 | N119: 1271.35 | O119: 28.27452982 | P119: 1243.07547 | Q119: 32686.36032 | R119: 0.01 | S119: 339.2943579 | T119: -1271.35 | U119: 1175.599965 | V119: 31400.22978 | X119: 94 | Y119: 460.47 | Z119: 10.24082789 | AA119: 450.2291721 | AB119: 11838.7643 | AC119: 0.01 | AD119: 122.8899347 | AE119: -460.47 | AF119: 425.7903468 | AG119: 11372.9306 | AI119: 94 | AJ119: 480 | AK119: -9.52124546 | AL119: 489.5212455 | AM119: -11915.0158 | AN119: -480 | AP119: 94 | AQ119: -480 | AR119: 9.52124546 | AS119: -489.5212455 | AT119: 11915.0158 | AU119: 480
B120: 95 | C120: 876.04 | D120: 18.76910761 | E120: 857.2708924 | F120: 21665.65825 | G120: 0.01 | H120: 225.2292914 | I120: -876.04 | J120: 809.3877503 | K120: 20826.6427 | M120: 95 | N120: 1271.35 | O120: 27.2386336 | P120: 1244.111366 | Q120: 31442.24895 | R120: 0.01 | S120: 326.8636032 | T120: -1271.35 | U120: 1174.621114 | V120: 30224.62981 | X120: 95 | Y120: 460.47 | Z120: 9.865636916 | AA120: 450.6043631 | AB120: 11388.15994 | AC120: 0.01 | AD120: 118.387643 | AE120: -460.47 | AF120: 425.4358174 | AG120: 10947.14025 | AI120: 95 | AJ120: 490 | AK120: -9.929179831 | AL120: 499.9291798 | AM120: -12414.94498 | AN120: -490 | AP120: 95 | AQ120: -490 | AR120: 9.929179831 | AS120: -499.9291798 | AT120: 12414.94498 | AU120: 490
B121: 96 | C121: 876.04 | D121: 18.0547152 | E121: 857.9852848 | F121: 20807.67296 | G121: 0.01 | H121: 216.6565825 | I121: -876.04 | J121: 808.7138225 | K121: 20017.25495 | M121: 96 | N121: 1271.35 | O121: 26.20187413 | P121: 1245.148126 | Q121: 30197.10083 | R121: 0.01 | S121: 314.4224895 | T121: -1271.35 | U121: 1173.643078 | V121: 29050.0087 | X121: 96 | Y121: 460.47 | Z121: 9.49013328 | AA121: 450.9798667 | AB121: 10937.18007 | AC121: 0.01 | AD121: 113.8815994 | AE121: -460.47 | AF121: 425.0815831 | AG121: 10521.70444 | AI121: 96 | AJ121: 500 | AK121: -10.34578748 | AL121: 510.3457875 | AM121: -12925.29076 | AN121: -500 | AP121: 96 | AQ121: -500 | AR121: 10.34578748 | AS121: -510.3457875 | AT121: 12925.29076 | AU121: 500
B122: 97 | C122: 876.04 | D122: 17.33972747 | E122: 858.7002725 | F122: 19948.97269 | G122: 0.01 | H122: 208.0767296 | I122: -876.04 | J122: 808.0404558 | K122: 19208.54113 | M122: 97 | N122: 1271.35 | O122: 25.16425069 | P122: 1246.185749 | Q122: 28950.91508 | R122: 0.01 | S122: 301.9710083 | T122: -1271.35 | U122: 1172.665857 | V122: 27876.36562 | X122: 97 | Y122: 460.47 | Z122: 9.114316725 | AA122: 451.3556833 | AB122: 10485.82439 | AC122: 0.01 | AD122: 109.3718007 | AE122: -460.47 | AF122: 424.7276438 | AG122: 10096.62285 | AI122: 97 | AJ122: 510 | AK122: -10.77107564 | AL122: 520.7710756 | AM122: -13446.06184 | AN122: -510 | AP122: 97 | AQ122: -510 | AR122: 10.77107564 | AS122: -520.7710756 | AT122: 13446.06184 | AU122: 510
B123: 98 | C123: 876.04 | D123: 16.62414391 | E123: 859.4158561 | F123: 19089.55683 | G123: 0.01 | H123: 199.4897269 | I123: -876.04 | J123: 807.3676498 | K123: 18400.50068 | M123: 98 | N123: 1271.35 | O123: 24.12576256 | P123: 1247.224237 | Q123: 27703.69084 | R123: 0.01 | S123: 289.5091508 | T123: -1271.35 | U123: 1171.689449 | V123: 26703.69976 | X123: 98 | Y123: 460.47 | Z123: 8.738186989 | AA123: 451.731813 | AB123: 10034.09257 | AC123: 0.01 | AD123: 104.8582439 | AE123: -460.47 | AF123: 424.3739992 | AG123: 9671.89521 | AI123: 98 | AJ123: 520 | AK123: -11.20505153 | AL123: 531.2050515 | AM123: -13977.26689 | AN123: -520 | AP123: 98 | AQ123: -520 | AR123: 11.20505153 | AS123: -531.2050515 | AT123: 13977.26689 | AU123: 520
B124: 99 | C124: 876.04 | D124: 15.90796403 | E124: 860.132036 | F124: 18229.4248 | G124: 0.01 | H124: 190.8955683 | I124: -876.04 | J124: 806.6954041 | K124: 17593.13303 | M124: 99 | N124: 1271.35 | O124: 23.08640903 | P124: 1248.263591 | Q124: 26455.42725 | R124: 0.01 | S124: 277.0369084 | T124: -1271.35 | U124: 1170.713854 | V124: 25532.01031 | X124: 99 | Y124: 460.47 | Z124: 8.361743811 | AA124: 452.1082562 | AB124: 9581.984317 | AC124: 0.01 | AD124: 100.3409257 | AE124: -460.47 | AF124: 424.0206491 | AG124: 9247.52121 | AI124: 99 | AJ124: 530 | AK124: -11.64772241 | AL124: 541.6477224 | AM124: -14518.91461 | AN124: -530 | AP124: 99 | AQ124: -530 | AR124: 11.64772241 | AS124: -541.6477224 | AT124: 14518.91461 | AU124: 530
B125: 100 | C125: 876.04 | D125: 15.19118733 | E125: 860.8488127 | F125: 17368.57598 | G125: 0.01 | H125: 182.294248 | I125: -876.04 | J125: 806.023718 | K125: 16786.43762 | M125: 100 | N125: 1271.35 | O125: 22.04618937 | P125: 1249.303811 | Q125: 25206.12344 | R125: 0.01 | S125: 264.5542725 | T125: -1271.35 | U125: 1169.739072 | V125: 24361.29646 | X125: 100 | Y125: 460.47 | Z125: 7.984986931 | AA125: 452.4850131 | AB125: 9129.499304 | AC125: 0.01 | AD125: 95.81984317 | AE125: -460.47 | AF125: 423.6675931 | AG125: 8823.500561 | AI125: 100 | AJ125: 540 | AK125: -12.09909551 | AL125: 552.0990955 | AM125: -15071.01371 | AN125: -540 | AP125: 100 | AQ125: -540 | AR125: 12.09909551 | AS125: -552.0990955 | AT125: 15071.01371 | AU125: 540
B126: 101 | C126: 876.04 | D126: 14.47381332 | E126: 861.5661867 | F126: 16507.0098 | G126: 0.01 | H126: 173.6857598 | I126: -876.04 | J126: 805.3525912 | K126: 15980.4139 | M126: 101 | N126: 1271.35 | O126: 21.00510287 | P126: 1250.344897 | Q126: 23955.77854 | R126: 0.01 | S126: 252.0612344 | T126: -1271.35 | U126: 1168.765101 | V126: 23191.55739 | X126: 101 | Y126: 460.47 | Z126: 7.607916087 | AA126: 452.8620839 | AB126: 8676.63722 | AC126: 0.01 | AD126: 91.29499304 | AE126: -460.47 | AF126: 423.3148312 | AG126: 8399.832968 | AI126: 101 | AJ126: 550 | AK126: -12.55917809 | AL126: 562.5591781 | AM126: -15633.57289 | AN126: -550 | AP126: 101 | AQ126: -550 | AR126: 12.55917809 | AS126: -562.5591781 | AT126: 15633.57289 | AU126: 550
B127: 102 | C127: 876.04 | D127: 13.7558415 | E127: 862.2841585 | F127: 15644.72564 | G127: 0.01 | H127: 165.070098 | I127: -876.04 | J127: 804.6820233 | K127: 15175.06131 | M127: 102 | N127: 1271.35 | O127: 19.96314878 | P127: 1251.386851 | Q127: 22704.39169 | R127: 0.01 | S127: 239.5577854 | T127: -1271.35 | U127: 1167.791941 | V127: 22022.79229 | X127: 102 | Y127: 460.47 | Z127: 7.230531017 | AA127: 453.239469 | AB127: 8223.397751 | AC127: 0.01 | AD127: 86.7663722 | AE127: -460.47 | AF127: 422.9623629 | AG127: 7976.518137 | AI127: 102 | AJ127: 560 | AK127: -13.02797741 | AL127: 573.0279774 | AM127: -16206.60087 | AN127: -560 | AP127: 102 | AQ127: -560 | AR127: 13.02797741 | AS127: -573.0279774 | AT127: 16206.60087 | AU127: 560
B128: 103 | C128: 876.04 | D128: 13.03727137 | E128: 863.0027286 | F128: 14781.72291 | G128: 0.01 | H128: 156.4472564 | I128: -876.04 | J128: 804.0120136 | K128: 14370.37929 | M128: 103 | N128: 1271.35 | O128: 18.92032641 | P128: 1252.429674 | Q128: 21451.96202 | R128: 0.01 | S128: 227.0439169 | T128: -1271.35 | U128: 1166.819591 | V128: 20855.00035 | X128: 103 | Y128: 460.47 | Z128: 6.852831459 | AA128: 453.6171685 | AB128: 7769.780583 | AC128: 0.01 | AD128: 82.23397751 | AE128: -460.47 | AF128: 422.6101882 | AG128: 7553.555774 | AI128: 103 | AJ128: 570 | AK128: -13.50550072 | AL128: 583.5055007 | AM128: -16790.10637 | AN128: -570 | AP128: 103 | AQ128: -570 | AR128: 13.50550072 | AS128: -583.5055007 | AT128: 16790.10637 | AU128: 570
B129: 104 | C129: 876.04 | D129: 12.31810242 | E129: 863.7218976 | F129: 13918.00101 | G129: 0.01 | H129: 147.8172291 | I129: -876.04 | J129: 803.3425619 | K129: 13566.36728 | M129: 104 | N129: 1271.35 | O129: 17.87663501 | P129: 1253.473365 | Q129: 20198.48865 | R129: 0.01 | S129: 214.5196202 | T129: -1271.35 | U129: 1165.848052 | V129: 19688.18075 | X129: 104 | Y129: 460.47 | Z129: 6.474817152 | AA129: 453.9951828 | AB129: 7315.7854 | AC129: 0.01 | AD129: 77.69780583 | AE129: -460.47 | AF129: 422.2583066 | AG129: 7130.945586 | AI129: 104 | AJ129: 580 | AK129: -13.99175531 | AL129: 593.9917553 | AM129: -17384.09812 | AN129: -580 | AP129: 104 | AQ129: -580 | AR129: 13.99175531 | AS129: -593.9917553 | AT129: 17384.09812 | AU129: 580
B130: 105 | C130: 876.04 | D130: 11.59833418 | E130: 864.4416658 | F130: 13053.55935 | G130: 0.01 | H130: 139.1800101 | I130: -876.04 | J130: 802.6736675 | K130: 12763.02471 | M130: 105 | N130: 1271.35 | O130: 16.83207388 | P130: 1254.517926 | Q130: 18943.97073 | R130: 0.01 | S130: 201.9848865 | T130: -1271.35 | U130: 1164.877321 | V130: 18522.3327 | X130: 105 | Y130: 460.47 | Z130: 6.096487833 | AA130: 454.3735122 | AB130: 6861.411888 | AC130: 0.01 | AD130: 73.157854 | AE130: -460.47 | AF130: 421.9067181 | AG130: 6708.687279 | AI130: 105 | AJ130: 590 | AK130: -14.48674843 | AL130: 604.4867484 | AM130: -17988.58487 | AN130: -590 | AP130: 105 | AQ130: -590 | AR130: 14.48674843 | AS130: -604.4867484 | AT130: 17988.58487 | AU130: 590
B131: 106 | C131: 876.04 | D131: 10.87796612 | E131: 865.1620339 | F131: 12188.39731 | G131: 0.01 | H131: 130.5355935 | I131: -876.04 | J131: 802.0053301 | K131: 11960.35105 | M131: 106 | N131: 1271.35 | O131: 15.78664227 | P131: 1255.563358 | Q131: 17688.40737 | R131: 0.01 | S131: 189.4397073 | T131: -1271.35 | U131: 1163.907398 | V131: 17357.45538 | X131: 106 | Y131: 460.47 | Z131: 5.71784324 | AA131: 454.7521568 | AB131: 6406.659731 | AC131: 0.01 | AD131: 68.61411888 | AE131: -460.47 | AF131: 421.5554223 | AG131: 6286.780561 | AI131: 106 | AJ131: 600 | AK131: -14.99048739 | AL131: 614.9904874 | AM131: -18603.57536 | AN131: -600 | AP131: 106 | AQ131: -600 | AR131: 14.99048739 | AS131: -614.9904874 | AT131: 18603.57536 | AU131: 600
B132: 107 | C132: 876.04 | D132: 10.15699776 | E132: 865.8830022 | F132: 11322.51431 | G132: 0.01 | H132: 121.8839731 | I132: -876.04 | J132: 801.3375492 | K132: 11158.34572 | M132: 107 | N132: 1271.35 | O132: 14.74033947 | P132: 1256.609661 | Q132: 16431.79771 | R132: 0.01 | S132: 176.8840737 | T132: -1271.35 | U132: 1162.938283 | V132: 16193.54798 | X132: 107 | Y132: 460.47 | Z132: 5.338883109 | AA132: 455.1311169 | AB132: 5951.528614 | AC132: 0.01 | AD132: 64.06659731 | AE132: -460.47 | AF132: 421.204419 | AG132: 5865.225139 | AI132: 107 | AJ132: 610 | AK132: -15.50297946 | AL132: 625.5029795 | AM132: -19229.07834 | AN132: -610 | AP132: 107 | AQ132: -610 | AR132: 15.50297946 | AS132: -625.5029795 | AT132: 19229.07834 | AU132: 610
B133: 108 | C133: 876.04 | D133: 9.435428592 | E133: 866.6045714 | F133: 10455.90974 | G133: 0.01 | H133: 113.2251431 | I133: -876.04 | J133: 800.6703243 | K133: 10357.00817 | M133: 108 | N133: 1271.35 | O133: 13.69316476 | P133: 1257.656835 | Q133: 15174.14087 | R133: 0.01 | S133: 164.3179771 | T133: -1271.35 | U133: 1161.969975 | V133: 15030.6097 | X133: 108 | Y133: 460.47 | Z133: 4.959607178 | AA133: 455.5103928 | AB133: 5496.018221 | AC133: 0.01 | AD133: 59.51528614 | AE133: -460.47 | AF133: 420.853708 | AG133: 5444.02072 | AI133: 108 | AJ133: 620 | AK133: -16.02423195 | AL133: 636.0242319 | AM133: -19865.10257 | AN133: -620 | AP133: 108 | AQ133: -620 | AR133: 16.02423195 | AS133: -636.0242319 | AT133: 19865.10257 | AU133: 620
B134: 109 | C134: 876.04 | D134: 8.713258116 | E134: 867.3267419 | F134: 9588.582997 | G134: 0.01 | H134: 104.5590974 | I134: -876.04 | J134: 800.003655 | K134: 9556.337842 | M134: 109 | N134: 1271.35 | O134: 12.64511739 | P134: 1258.704883 | Q134: 13915.43599 | R134: 0.01 | S134: 151.7414087 | T134: -1271.35 | U134: 1161.002473 | V134: 13868.63973 | X134: 109 | Y134: 460.47 | Z134: 4.580015184 | AA134: 455.8899848 | AB134: 5040.128236 | AC134: 0.01 | AD134: 54.96018221 | AE134: -460.47 | AF134: 420.5032889 | AG134: 5023.167012 | AI134: 109 | AJ134: 630 | AK134: -16.55425214 | AL134: 646.5542521 | AM134: -20511.65682 | AN134: -630 | AP134: 109 | AQ134: -630 | AR134: 16.55425214 | AS134: -646.5542521 | AT134: 20511.65682 | AU134: 630
B135: 110 | C135: 876.04 | D135: 7.990485831 | E135: 868.0495142 | F135: 8720.533483 | G135: 0.01 | H135: 95.88582997 | I135: -876.04 | J135: 799.3375408 | K135: 8756.334187 | M135: 110 | N135: 1271.35 | O135: 11.59619666 | P135: 1259.753803 | Q135: 12655.68219 | R135: 0.01 | S135: 139.1543599 | T135: -1271.35 | U135: 1160.035776 | V135: 12707.63726 | X135: 110 | Y135: 460.47 | Z135: 4.200106864 | AA135: 456.2698931 | AB135: 4583.858343 | AC135: 0.01 | AD135: 50.40128236 | AE135: -460.47 | AF135: 420.1531617 | AG135: 4602.663723 | AI135: 110 | AJ135: 640 | AK135: -17.09304735 | AL135: 657.0930474 | AM135: -21168.74987 | AN135: -640 | AP135: 110 | AQ135: -640 | AR135: 17.09304735 | AS135: -657.0930474 | AT135: 21168.74987 | AU135: 640
B136: 111 | C136: 876.04 | D136: 7.267111236 | E136: 868.7728888 | F136: 7851.760594 | G136: 0.01 | H136: 87.20533483 | I136: -876.04 | J136: 798.6719811 | K136: 7956.996647 | M136: 111 | N136: 1271.35 | O136: 10.54640182 | P136: 1260.803598 | Q136: 11394.87859 | R136: 0.01 | S136: 126.5568219 | T136: -1271.35 | U136: 1159.069885 | V136: 11547.60148 | X136: 111 | Y136: 460.47 | Z136: 3.819881953 | AA136: 456.650118 | AB136: 4127.208225 | AC136: 0.01 | AD136: 45.83858343 | AE136: -460.47 | AF136: 419.803326 | AG136: 4182.510561 | AI136: 111 | AJ136: =AJ135+10 -> 650 | AK136: =AM135*$D$19/12 -> -17.64062489 | AL136: =AJ136-AK136 -> 667.6406249 | AM136: =AM135-AL136 -> -21836.39049 | AN136: =-AJ136 -> -650 | AP136: 111 | AQ136: -650 | AR136: =AT135*$D$19/12 -> 17.64062489 | AS136: =AQ136-AR136 -> -667.6406249 | AT136: =AT135-AS136 -> 21836.39049 | AU136: =-AQ136 -> 650
B137: 112 | C137: 876.04 | D137: 6.543133828 | E137: 869.4968662 | F137: 6982.263728 | G137: 0.01 | H137: 78.51760594 | I137: -876.04 | J137: 798.0069757 | K137: 7158.324665 | M137: 112 | N137: 1271.35 | O137: 9.495732156 | P137: 1261.854268 | Q137: 10133.02432 | R137: 0.01 | S137: 113.9487859 | T137: -1271.35 | U137: 1158.104798 | V137: 10388.53159 | X137: 112 | Y137: 460.47 | Z137: 3.439340188 | AA137: 457.0306598 | AB137: 3670.177565 | AC137: 0.01 | AD137: 41.27208225 | AE137: -460.47 | AF137: 419.4537816 | AG137: 3762.707235 | AI137: 112 | AJ137: 660 | AK137: -18.19699208 | AL137: 678.1969921 | AM137: -22514.58749 | AN137: -660 | AP137: 112 | AQ137: -660 | AR137: 18.19699208 | AS137: -678.1969921 | AT137: 22514.58749 | AU137: 660
B138: 113 | C138: 876.04 | D138: 5.818553106 | E138: 870.2214469 | F138: 6112.042281 | G138: 0.01 | H138: 69.82263728 | I138: -876.04 | J138: 797.342524 | K138: 6360.31769 | M138: 113 | N138: 1271.35 | O138: 8.444186933 | P138: 1262.905813 | Q138: 8870.118507 | R138: 0.01 | S138: 101.3302432 | T138: -1271.35 | U138: 1157.140514 | V138: 9230.426797 | X138: 113 | Y138: 460.47 | Z138: 3.058481304 | AA138: 457.4115187 | AB138: 3212.766047 | AC138: 0.01 | AD138: 36.70177565 | AE138: -460.47 | AF138: 419.1045282 | AG138: 3343.253454 | AI138: 113 | AJ138: 670 | AK138: -18.76215624 | AL138: 688.7621562 | AM138: -23203.34964 | AN138: -670 | AP138: 113 | AQ138: -670 | AR138: 18.76215624 | AS138: -688.7621562 | AT138: 23203.34964 | AU138: 670
B139: 114 | C139: 876.04 | D139: 5.093368567 | E139: 870.9466314 | F139: 5241.095649 | G139: 0.01 | H139: 61.12042281 | I139: -876.04 | J139: 796.6786255 | K139: 5562.975166 | M139: 114 | N139: 1271.35 | O139: 7.391765422 | P139: 1263.958235 | Q139: 7606.160272 | R139: 0.01 | S139: 88.70118507 | T139: -1271.35 | U139: 1156.177033 | V139: 8073.286283 | X139: 114 | Y139: 460.47 | Z139: 2.677305039 | AA139: 457.792695 | AB139: 2754.973352 | AC139: 0.01 | AD139: 32.12766047 | AE139: -460.47 | AF139: 418.7555656 | AG139: 2924.148926 | AI139: 114 | AJ139: 680 | AK139: -19.3361247 | AL139: 699.3361247 | AM139: -23902.68577 | AN139: -680 | AP139: 114 | AQ139: -680 | AR139: 19.3361247 | AS139: -699.3361247 | AT139: 23902.68577 | AU139: 680
B140: 115 | C140: 876.04 | D140: 4.367579708 | E140: 871.6724203 | F140: 4369.423229 | G140: 0.01 | H140: 52.41095649 | I140: -876.04 | J140: 796.0152798 | K140: 4766.29654 | M140: 115 | N140: 1271.35 | O140: 6.338466894 | P140: 1265.011533 | Q140: 6341.148739 | R140: 0.01 | S140: 76.06160272 | T140: -1271.35 | U140: 1155.214355 | V140: 6917.109249 | X140: 115 | Y140: 460.47 | Z140: 2.295811126 | AA140: 458.1741889 | AB140: 2296.799163 | AC140: 0.01 | AD140: 27.54973352 | AE140: -460.47 | AF140: 418.4068936 | AG140: 2505.39336 | AI140: 115 | AJ140: 690 | AK140: -19.91890481 | AL140: 709.9189048 | AM140: -24612.60467 | AN140: -690 | AP140: 115 | AQ140: -690 | AR140: 19.91890481 | AS140: -709.9189048 | AT140: 24612.60467 | AU140: 690
B141: 116 | C141: 876.04 | D141: 3.641186024 | E141: 872.398814 | F141: 3497.024415 | G141: 0.01 | H141: 43.69423229 | I141: -876.04 | J141: 795.3524865 | K141: 3970.28126 | M141: 116 | N141: 1271.35 | O141: 5.284290616 | P141: 1266.065709 | Q141: 5075.08303 | R141: 0.01 | S141: 63.41148739 | T141: -1271.35 | U141: 1154.252478 | V141: 5761.894895 | X141: 116 | Y141: 460.47 | Z141: 1.913999302 | AA141: 458.5560007 | AB141: 1838.243162 | AC141: 0.01 | AD141: 22.96799163 | AE141: -460.47 | AF141: 418.0585119 | AG141: 2086.986466 | AI141: 116 | AJ141: 700 | AK141: -20.51050389 | AL141: 720.5105039 | AM141: -25333.11517 | AN141: -700 | AP141: 116 | AQ141: -700 | AR141: 20.51050389 | AS141: -720.5105039 | AT141: 25333.11517 | AU141: 700
B142: 117 | C142: 876.04 | D142: 2.914187013 | E142: 873.125813 | F142: 2623.898602 | G142: 0.01 | H142: 34.97024415 | I142: -876.04 | J142: 794.690245 | K142: 3174.928774 | M142: 117 | N142: 1271.35 | O142: 4.229235858 | P142: 1267.120764 | Q142: 3807.962266 | R142: 0.01 | S142: 50.7508303 | T142: -1271.35 | U142: 1153.291402 | V142: 4607.642417 | X142: 117 | Y142: 460.47 | Z142: 1.531869302 | AA142: 458.9381307 | AB142: 1379.305031 | AC142: 0.01 | AD142: 18.38243162 | AE142: -460.47 | AF142: 417.7104202 | AG142: 1668.927955 | AI142: 117 | AJ142: 710 | AK142: -21.11092931 | AL142: 731.1109293 | AM142: -26064.2261 | AN142: -710 | AP142: 117 | AQ142: -710 | AR142: 21.11092931 | AS142: -731.1109293 | AT142: 26064.2261 | AU142: 710
B143: 118 | C143: 876.04 | D143: 2.186582168 | E143: 873.8534178 | F143: 1750.045184 | G143: 0.01 | H143: 26.23898602 | I143: -876.04 | J143: 794.0285549 | K143: 2380.238529 | M143: 118 | N143: 1271.35 | O143: 3.173301888 | P143: 1268.176698 | Q143: 2539.785568 | R143: 0.01 | S143: 38.07962266 | T143: -1271.35 | U143: 1152.331126 | V143: 3454.351015 | X143: 118 | Y143: 460.47 | Z143: 1.14942086 | AA143: 459.3205791 | AB143: 919.9844523 | AC143: 0.01 | AD143: 13.79305031 | AE143: -460.47 | AF143: 417.3626184 | AG143: 1251.217534 | AI143: 118 | AJ143: 720 | AK143: -21.72018842 | AL143: 741.7201884 | AM143: -26805.94629 | AN143: -720 | AP143: 118 | AQ143: -720 | AR143: 21.72018842 | AS143: -741.7201884 | AT143: 26805.94629 | AU143: 720
B144: 119 | C144: 876.04 | D144: =IF(OR($I$5=1,$I$5=3),F143*$D$19/12,IF($I$5=2,ROUND(F143*$D$19/12,2),ROUNDDOWN(F143*$D$19/12,2))) -> 1.458370987 | E144: 874.581629 | F144: =IF($I$5<>2,F143-E144,ROUND(F143-E144,2)) -> 875.4635553 | G144: 0.01 | H144: 17.50045184 | I144: -876.04 | J144: 793.3674157 | K144: =J144+K145 -> 1586.209974 | M144: 119 | N144: 1271.35 | O144: 2.116487973 | P144: 1269.233512 | Q144: 1270.552056 | R144: 0.01 | S144: 25.39785568 | T144: -1271.35 | U144: 1151.37165 | V144: 2302.019889 | X144: 119 | Y144: 460.47 | Z144: 0.7666537103 | AA144: 459.7033463 | AB144: 460.281106 | AC144: 0.01 | AD144: 9.199844523 | AE144: -460.47 | AF144: 417.0151062 | AG144: =AG145+AF144 -> 833.8549159 | AI144: 119 | AJ144: 730 | AK144: -22.33828858 | AL144: 752.3382886 | AM144: -27558.28458 | AN144: -730 | AP144: 119 | AQ144: -730 | AR144: 22.33828858 | AS144: -752.3382886 | AT144: 27558.28458 | AU144: 730
B145: 120 | C145: =IF($I$5=1,E145+D145,ROUND(E145+D145,2)) -> 876.19 | D145: =IF(OR($I$5=1,$I$5=3),F144*$D$19/12,IF($I$5=2,ROUND(F144*$D$19/12,2),ROUNDDOWN(F144*$D$19/12,2))) -> 0.7295529628 | E145: =F144 -> 875.4635553 | F145: =IF($I$5<>2,F144-E145,ROUND(F144-E145,2)) -> 0 | G145: =D145*12/F144 -> 0.01 | H145: =G145*F144 -> 8.754635553 | I145: =-C145 -> -876.19 | J145: =C145*(1+$J$21)^(-B145/12) -> 792.8425584 | K145: =J145 -> 792.8425584 | M145: 120 | N145: =IF($I$5=1,P145+O145,ROUND(P145+O145,2)) -> 1271.61 | O145: 1.05879338 | P145: =IF($I$5<>2,Q144,ROUND(Q144,2)) -> 1270.552056 | Q145: 0 | R145: 0.01 | S145: 12.70552056 | T145: -1271.61 | U145: 1150.64824 | V145: =U145 -> 1150.64824 | X145: 120 | Y145: =IF($I$5=1,AA145+Z145,ROUND(AA145+Z145,2)) -> 460.66 | Z145: 0.3835675883 | AA145: =IF($I$5<>2,AB144,ROUND(AB144,2)) -> 460.281106 | AB145: 0 | AC145: 0.01 | AD145: 4.60281106 | AE145: -460.66 | AF145: 416.8398097 | AG145: =AF145 -> 416.8398097 | AI145: 120 | AJ145: =AL145+AK145 -> -27581.24982 | AK145: -22.96523715 | AL145: =AM144 -> -27558.28458 | AM145: 0 | AN145: 27581.24982 | AP145: 120 | AQ145: =AS145+AR145 -> 27581.24982 | AR145: 22.96523715 | AS145: =AT144 -> 27558.28458 | AT145: 0 | AU145: -27581.24982
C146: =SUM(C26:C145) -> 105124.95 | D146: =SUM(D26:D145) -> 5124.953108 | E146: =SUM(E26:E145) -> 100000 | F146: =SUM(F25:F145) -> 6149943.73 | I146: =IRR(I25:I145,1/1200) -> 0.0008333328602 | N146: =SUM(N26:N145) -> 106281.26 | O146: =SUM(O26:O145) -> 6281.260849 | P146: =SUM(P26:P145) -> 100000 | Q146: =SUM(Q25:Q145) -> 7537513.019 | T146: =IRR(T25:T145,1/1200) -> 0.0008333332276 | Y146: =SUM(Y26:Y145) -> 103909.39 | Z146: =SUM(Z26:Z145) -> 3909.394674 | AA146: =SUM(AA26:AA145) -> 100000 | AB146: =SUM(AB25:AB145) -> 4691273.608 | AE146: =IRR(AE25:AE145,1/1200) -> 0.0008333324057 | AJ146: =SUM(AJ26:AJ145) -> -571.2498182 | AK146: =SUM(AK26:AK145) -> -571.2498182 | AL146: =SUM(AL26:AL145) -> 0 | AN146: =IRR(AN25:AN145,1/1200) -> 0.0008333333333 | AQ146: =SUM(AQ26:AQ145) -> 571.2498182 | AR146: =SUM(AR26:AR145) -> 571.2498182 | AS146: =SUM(AS26:AS145) -> 0 | AU146: =IRR(AU25:AU145,1/1200) -> 0.0008333333333
C147: =E146+D146 -> 105124.9531 | N147: =P146+O146 -> 106281.2608 | Y147: =AA146+Z146 -> 103909.3947 | AJ147: =AL146+AK146 -> -571.2498182 | AQ147: =AS146+AR146 -> 571.2498182
B148: Abandon d'intérêts par la banque | M148: Abandon d'intérêts par la banque | X148: Abandon d'intérêts par la banque
C149: =C146-C147 -> -0.00310829618 | G149: =COUNTIF(G26:G145,"<=0,01") -> 120 | H149: Inférieurs au taux contractuel | N149: =N146-N147 -> -0.0008488825988 | R149: =COUNTIF(R26:R145,"<=0,01") -> 120 | S149: Inférieurs au taux contractuel | Y149: =Y146-Y147 -> -0.00467360302 | AC149: =COUNTIF(AC26:AC145,"<=0,01") -> 120 | AD149: Inférieurs au taux contractuel
G150: =COUNTIF(G26:G145,">0,01") -> 0 | H150: Supérieurs au taux contractuel | R150: =COUNTIF(R26:R145,">0,01") -> 0 | S150: Supérieurs au taux contractuel | AC150: =COUNTIF(AC26:AC145,">0,01") -> 0 | AD150: Supérieurs au taux contractuel
G151: =COUNT(G26:G145) -> 120 | H151: Total | R151: =COUNT(R26:R145) -> 120 | S151: Total | AC151: =COUNT(AC26:AC145) -> 120 | AD151: Total
B153: Aucun arrondi (Cas d'école)
B154: Arrondis monétaires 2 décimales au plus proche partout
B155: Arrondis monétaires 2 décimales au plus proche sur échéances seulement
B156: Arrondis monétaires 2 décimales au plus proche sur échéances et à l'inférieur sur intérêts

Sheet Feuil2

Sheet Feuil3
